{"text_format":"1","workbook":"xlsx","n_sheets":10,"sheets":["Spiele Staffel 1","Spiele Staffel 2","Spiele Staffel 3","Spiele Staffel 4","Mannschaften","Spielerzuordnung","Alle Spieler","START","STARTEN","Anleitung"],"not_rendered":{"charts":0,"images":3,"macros":1,"external_links":0,"defined_names":16,"comments":1,"pivot_tables":0},"unopened":[],"bounds":{"document_bytes":16777216,"sheet_cells":100000,"rows_first":2000,"rows_last":500,"rows_between":2000,"halvings":0,"cell_chars":16384,"cell_head_chars":4096},"cells_cut":0,"cells_raw":0,"read":"whole","date_system":"1900"}

{"sheet":"Spiele Staffel 1","index":0,"n_rows":48,"n_cols":8,"rows_kept":48,"cut":false,"hidden":true,"merged":[]}
["Mannschaftsmeisterschaft 1.Liga - Rückrunde",null,null,null,null,null,null,"STAFFEL 1 Spiel Wählen"]
["ST","Nr.","Datum","Gastgeber","Gast",null,null,"POKAL 3er:123456:für Pokalspiel"]
[null,251046,"2026-02-13","TTC Rotation Weimar V2","TTC Rotation Weimar V1",null,null,{"$f":"TEXT(C3,\"TT.M.JJ\")& \":\"&B3&\":\"&D3&\":\"&E3","v":"13.2.26:251046:TTC Rotation Weimar V2:TTC Rotation Weimar V1"}]
[null,251047,"2026-02-13","Rotation Tannroda 1","KSSV Viktoria Weimar 1",null,null,"13.2.26:251047:Rotation Tannroda 1:KSSV Viktoria Weimar 1"]
[null,251048,"2026-02-12","TSV 1914 Berlstedt 1","BSV 04 Bad Berka F1",null,null,"12.2.26:251048:TSV 1914 Berlstedt 1:BSV 04 Bad Berka F1"]
[null,251049,"2026-02-12","BSV 04 Bad Berka F2","ZLSG Wormstedt 1",null,null,"12.2.26:251049:BSV 04 Bad Berka F2:ZLSG Wormstedt 1"]
[null,251050,"2026-02-10","Medizin Blankenhain 1","Fortuna Großschwabhausen 1",null,null,"10.2.26:251050:Medizin Blankenhain 1:Fortuna Großschwabhausen 1"]
[null,251051,"2026-02-24","TTC Rotation Weimar V1","Rotation Tannroda 1",null,null,"24.2.26:251051:TTC Rotation Weimar V1:Rotation Tannroda 1"]
[null,251052,"2026-02-25","KSSV Viktoria Weimar 1","TSV 1914 Berlstedt 1",null,null,"25.2.26:251052:KSSV Viktoria Weimar 1:TSV 1914 Berlstedt 1"]
[null,251053,"2026-02-23","BSV 04 Bad Berka F1","BSV 04 Bad Berka F2",null,null,"23.2.26:251053:BSV 04 Bad Berka F1:BSV 04 Bad Berka F2"]
[null,251054,"2026-02-23","ZLSG Wormstedt 1","Medizin Blankenhain 1",null,null,"23.2.26:251054:ZLSG Wormstedt 1:Medizin Blankenhain 1"]
[null,251055,"2026-02-24","Fortuna Großschwabhausen 1","TTC Rotation Weimar V2",null,null,"24.2.26:251055:Fortuna Großschwabhausen 1:TTC Rotation Weimar V2"]
[null,251056,"2026-03-05","TSV 1914 Berlstedt 1","TTC Rotation Weimar V1",null,null,"05.3.26:251056:TSV 1914 Berlstedt 1:TTC Rotation Weimar V1"]
[null,251057,"2026-03-05","BSV 04 Bad Berka F2","KSSV Viktoria Weimar 1",null,null,"05.3.26:251057:BSV 04 Bad Berka F2:KSSV Viktoria Weimar 1"]
[null,251058,"2026-03-03","Medizin Blankenhain 1","BSV 04 Bad Berka F1",null,null,"03.3.26:251058:Medizin Blankenhain 1:BSV 04 Bad Berka F1"]
[null,251059,"2026-03-03","Fortuna Großschwabhausen 1","ZLSG Wormstedt 1",null,null,"03.3.26:251059:Fortuna Großschwabhausen 1:ZLSG Wormstedt 1"]
[null,251060,"2026-03-06","TTC Rotation Weimar V2","Rotation Tannroda 1",null,null,"06.3.26:251060:TTC Rotation Weimar V2:Rotation Tannroda 1"]
[null,251061,"2026-03-10","TTC Rotation Weimar V1","BSV 04 Bad Berka F2",null,null,"10.3.26:251061:TTC Rotation Weimar V1:BSV 04 Bad Berka F2"]
[null,251062,"2026-03-11","KSSV Viktoria Weimar 1","Medizin Blankenhain 1",null,null,"11.3.26:251062:KSSV Viktoria Weimar 1:Medizin Blankenhain 1"]
[null,251063,"2026-03-09","BSV 04 Bad Berka F1","Fortuna Großschwabhausen 1",null,null,"09.3.26:251063:BSV 04 Bad Berka F1:Fortuna Großschwabhausen 1"]
[null,251064,"2026-03-09","ZLSG Wormstedt 1","TTC Rotation Weimar V2",null,null,"09.3.26:251064:ZLSG Wormstedt 1:TTC Rotation Weimar V2"]
[null,251065,"2026-03-13","Rotation Tannroda 1","TSV 1914 Berlstedt 1",null,null,{"$f":"TEXT(C22,\"TT.M.JJ\")& \":\"&B22&\":\"&D22&\":\"&E22","v":"13.3.26:251065:Rotation Tannroda 1:TSV 1914 Berlstedt 1"}]
[null,251066,"2026-03-17","Medizin Blankenhain 1","TTC Rotation Weimar V1",null,null,"17.3.26:251066:Medizin Blankenhain 1:TTC Rotation Weimar V1"]
[null,251067,"2026-03-17","Fortuna Großschwabhausen 1","KSSV Viktoria Weimar 1",null,null,"17.3.26:251067:Fortuna Großschwabhausen 1:KSSV Viktoria Weimar 1"]
[null,251068,"2026-03-16","ZLSG Wormstedt 1","BSV 04 Bad Berka F1",null,null,"16.3.26:251068:ZLSG Wormstedt 1:BSV 04 Bad Berka F1"]
[null,251069,"2026-03-19","BSV 04 Bad Berka F2","Rotation Tannroda 1",null,null,"19.3.26:251069:BSV 04 Bad Berka F2:Rotation Tannroda 1"]
[null,251070,"2026-03-20","TTC Rotation Weimar V2","TSV 1914 Berlstedt 1",null,null,"20.3.26:251070:TTC Rotation Weimar V2:TSV 1914 Berlstedt 1"]
[null,251071,"2026-03-24","TTC Rotation Weimar V1","Fortuna Großschwabhausen 1",null,null,"24.3.26:251071:TTC Rotation Weimar V1:Fortuna Großschwabhausen 1"]
[null,251072,"2026-03-25","KSSV Viktoria Weimar 1","ZLSG Wormstedt 1",null,null,"25.3.26:251072:KSSV Viktoria Weimar 1:ZLSG Wormstedt 1"]
[null,251073,"2026-03-23","BSV 04 Bad Berka F1","TTC Rotation Weimar V2",null,null,"23.3.26:251073:BSV 04 Bad Berka F1:TTC Rotation Weimar V2"]
[null,251074,"2026-03-27","Rotation Tannroda 1","Medizin Blankenhain 1",null,null,"27.3.26:251074:Rotation Tannroda 1:Medizin Blankenhain 1"]
[null,251075,"2026-03-26","TSV 1914 Berlstedt 1","BSV 04 Bad Berka F2",null,null,"26.3.26:251075:TSV 1914 Berlstedt 1:BSV 04 Bad Berka F2"]
[null,251076,"2026-03-30","ZLSG Wormstedt 1","TTC Rotation Weimar V1",null,null,"30.3.26:251076:ZLSG Wormstedt 1:TTC Rotation Weimar V1"]
[null,251077,"2026-03-30","BSV 04 Bad Berka F1","KSSV Viktoria Weimar 1",null,null,"30.3.26:251077:BSV 04 Bad Berka F1:KSSV Viktoria Weimar 1"]
[null,251078,"2026-03-31","Fortuna Großschwabhausen 1","Rotation Tannroda 1",null,null,"31.3.26:251078:Fortuna Großschwabhausen 1:Rotation Tannroda 1"]
[null,251079,"2026-03-31","Medizin Blankenhain 1","TSV 1914 Berlstedt 1",null,null,"31.3.26:251079:Medizin Blankenhain 1:TSV 1914 Berlstedt 1"]
[null,251080,"2026-04-03","TTC Rotation Weimar V2","BSV 04 Bad Berka F2",null,null,"03.4.26:251080:TTC Rotation Weimar V2:BSV 04 Bad Berka F2"]
[null,251081,"2026-04-21","TTC Rotation Weimar V1","BSV 04 Bad Berka F1",null,null,"21.4.26:251081:TTC Rotation Weimar V1:BSV 04 Bad Berka F1"]
[null,251082,"2026-04-22","KSSV Viktoria Weimar 1","TTC Rotation Weimar V2",null,null,"22.4.26:251082:KSSV Viktoria Weimar 1:TTC Rotation Weimar V2"]
[null,251083,"2026-04-24","Rotation Tannroda 1","ZLSG Wormstedt 1",null,null,"24.4.26:251083:Rotation Tannroda 1:ZLSG Wormstedt 1"]
[null,251084,"2026-04-23","TSV 1914 Berlstedt 1","Fortuna Großschwabhausen 1",null,null,"23.4.26:251084:TSV 1914 Berlstedt 1:Fortuna Großschwabhausen 1"]
[null,251085,"2026-04-23","BSV 04 Bad Berka F2","Medizin Blankenhain 1",null,null,"23.4.26:251085:BSV 04 Bad Berka F2:Medizin Blankenhain 1"]
[null,251086,"2026-05-06","KSSV Viktoria Weimar 1","TTC Rotation Weimar V1",null,null,"06.5.26:251086:KSSV Viktoria Weimar 1:TTC Rotation Weimar V1"]
[null,251087,"2026-05-04","BSV 04 Bad Berka F1","Rotation Tannroda 1",null,null,"04.5.26:251087:BSV 04 Bad Berka F1:Rotation Tannroda 1"]
[null,251088,"2026-05-04","ZLSG Wormstedt 1","TSV 1914 Berlstedt 1",null,null,"04.5.26:251088:ZLSG Wormstedt 1:TSV 1914 Berlstedt 1"]
[null,251089,"2026-05-05","Fortuna Großschwabhausen 1","BSV 04 Bad Berka F2",null,null,"05.5.26:251089:Fortuna Großschwabhausen 1:BSV 04 Bad Berka F2"]
[null,251090,"2026-05-08","TTC Rotation Weimar V2","Medizin Blankenhain 1",null,null,"08.5.26:251090:TTC Rotation Weimar V2:Medizin Blankenhain 1"]
[null,123456,"POKAL 3er","für Pokalspiel die 123456 wählen",null,null,null,"POKAL 3er:123456:für Pokalspiel die 123456 wählen:"]

{"sheet":"Spiele Staffel 2","index":1,"n_rows":48,"n_cols":8,"rows_kept":48,"cut":false,"hidden":true,"merged":[]}
["Mannschaftsmeisterschaft 2.Liga - Rückrunde",null,null,null,null,null,null,"STAFFEL 2 Spiel Wählen"]
["ST","Nr.","Datum","Gastgeber","Gast",null,null,"POKAL 3er:123456:für Pokalspiel"]
[10,252046,"2026-02-12","ZLSG Wormstedt 3","ZLSG Wormstedt 2",null,null,{"$f":"TEXT(C3,\"TT.M.JJ\")& \":\"&B3&\":\"&D3&\":\"&E3","v":"12.2.26:252046:ZLSG Wormstedt 3:ZLSG Wormstedt 2"}]
[null,252047,"2026-02-10","Fortuna Großschwabhausen 3","Fortuna Großschwabhausen 2",null,null,"10.2.26:252047:Fortuna Großschwabhausen 3:Fortuna Großschwabhausen 2"]
[null,252048,"2026-02-11","TSG Apolda","Medizin Blankenhain 2",null,null,"11.2.26:252048:TSG Apolda:Medizin Blankenhain 2"]
[null,252049,"2026-02-09","BSV 04 Bad Berka F3","TSV 1914 Berlstedt 2",null,null,"09.2.26:252049:BSV 04 Bad Berka F3:TSV 1914 Berlstedt 2"]
[null,252050,"2026-02-10","TTC Rotation Weimar V3","Rotation Tannroda 2",null,null,"10.2.26:252050:TTC Rotation Weimar V3:Rotation Tannroda 2"]
[11,252051,"2026-02-26","ZLSG Wormstedt 2","Fortuna Großschwabhausen 3",null,null,"26.2.26:252051:ZLSG Wormstedt 2:Fortuna Großschwabhausen 3"]
[null,252052,"2026-02-25","Fortuna Großschwabhausen 2","TSG Apolda",null,null,"25.2.26:252052:Fortuna Großschwabhausen 2:TSG Apolda"]
[null,252053,"2026-02-27","Medizin Blankenhain 2","BSV 04 Bad Berka F3",null,null,"27.2.26:252053:Medizin Blankenhain 2:BSV 04 Bad Berka F3"]
[null,252054,"2026-02-26","TSV 1914 Berlstedt 2","TTC Rotation Weimar V3",null,null,"26.2.26:252054:TSV 1914 Berlstedt 2:TTC Rotation Weimar V3"]
[null,252055,"2026-02-27","Rotation Tannroda 2","ZLSG Wormstedt 3",null,null,"27.2.26:252055:Rotation Tannroda 2:ZLSG Wormstedt 3"]
[12,252056,"2026-03-04","TSG Apolda","ZLSG Wormstedt 2",null,null,"04.3.26:252056:TSG Apolda:ZLSG Wormstedt 2"]
[null,252057,"2026-03-02","BSV 04 Bad Berka F3","Fortuna Großschwabhausen 2",null,null,"02.3.26:252057:BSV 04 Bad Berka F3:Fortuna Großschwabhausen 2"]
[null,252058,"2026-03-03","TTC Rotation Weimar V3","Medizin Blankenhain 2",null,null,"03.3.26:252058:TTC Rotation Weimar V3:Medizin Blankenhain 2"]
[null,252059,"2026-03-06","Rotation Tannroda 2","TSV 1914 Berlstedt 2",null,null,"06.3.26:252059:Rotation Tannroda 2:TSV 1914 Berlstedt 2"]
[null,252060,"2026-03-05","ZLSG Wormstedt 3","Fortuna Großschwabhausen 3",null,null,"05.3.26:252060:ZLSG Wormstedt 3:Fortuna Großschwabhausen 3"]
[13,252061,"2026-03-12","ZLSG Wormstedt 2","BSV 04 Bad Berka F3",null,null,"12.3.26:252061:ZLSG Wormstedt 2:BSV 04 Bad Berka F3"]
[null,252062,"2026-03-11","Fortuna Großschwabhausen 2","TTC Rotation Weimar V3",null,null,"11.3.26:252062:Fortuna Großschwabhausen 2:TTC Rotation Weimar V3"]
[null,252063,"2026-03-13","Medizin Blankenhain 2","Rotation Tannroda 2",null,null,"13.3.26:252063:Medizin Blankenhain 2:Rotation Tannroda 2"]
[null,252064,"2026-03-12","TSV 1914 Berlstedt 2","ZLSG Wormstedt 3",null,null,"12.3.26:252064:TSV 1914 Berlstedt 2:ZLSG Wormstedt 3"]
[null,252065,"2026-03-10","Fortuna Großschwabhausen 3","TSG Apolda",null,null,{"$f":"TEXT(C22,\"TT.M.JJ\")& \":\"&B22&\":\"&D22&\":\"&E22","v":"10.3.26:252065:Fortuna Großschwabhausen 3:TSG Apolda"}]
[14,252066,"2026-03-17","TTC Rotation Weimar V3","ZLSG Wormstedt 2",null,null,"17.3.26:252066:TTC Rotation Weimar V3:ZLSG Wormstedt 2"]
[null,252067,"2026-03-20","Rotation Tannroda 2","Fortuna Großschwabhausen 2",null,null,"20.3.26:252067:Rotation Tannroda 2:Fortuna Großschwabhausen 2"]
[null,252068,"2026-03-19","TSV 1914 Berlstedt 2","Medizin Blankenhain 2",null,null,"19.3.26:252068:TSV 1914 Berlstedt 2:Medizin Blankenhain 2"]
[null,252069,"2026-03-16","BSV 04 Bad Berka F3","Fortuna Großschwabhausen 3",null,null,"16.3.26:252069:BSV 04 Bad Berka F3:Fortuna Großschwabhausen 3"]
[null,252070,"2026-03-19","ZLSG Wormstedt 3","TSG Apolda",null,null,"19.3.26:252070:ZLSG Wormstedt 3:TSG Apolda"]
[15,252071,"2026-03-26","ZLSG Wormstedt 2","Rotation Tannroda 2",null,null,"26.3.26:252071:ZLSG Wormstedt 2:Rotation Tannroda 2"]
[null,252072,"2026-03-25","Fortuna Großschwabhausen 2","TSV 1914 Berlstedt 2",null,null,"25.3.26:252072:Fortuna Großschwabhausen 2:TSV 1914 Berlstedt 2"]
[null,252073,"2026-03-27","Medizin Blankenhain 2","ZLSG Wormstedt 3",null,null,"27.3.26:252073:Medizin Blankenhain 2:ZLSG Wormstedt 3"]
[null,252074,"2026-03-24","Fortuna Großschwabhausen 3","TTC Rotation Weimar V3",null,null,"24.3.26:252074:Fortuna Großschwabhausen 3:TTC Rotation Weimar V3"]
[null,252075,"2026-03-25","TSG Apolda","BSV 04 Bad Berka F3",null,null,"25.3.26:252075:TSG Apolda:BSV 04 Bad Berka F3"]
[16,252076,"2026-04-02","TSV 1914 Berlstedt 2","ZLSG Wormstedt 2",null,null,"02.4.26:252076:TSV 1914 Berlstedt 2:ZLSG Wormstedt 2"]
[null,252077,"2026-04-03","Medizin Blankenhain 2","Fortuna Großschwabhausen 2",null,null,"03.4.26:252077:Medizin Blankenhain 2:Fortuna Großschwabhausen 2"]
[null,252078,"2026-04-03","Rotation Tannroda 2","Fortuna Großschwabhausen 3",null,null,"03.4.26:252078:Rotation Tannroda 2:Fortuna Großschwabhausen 3"]
[null,252079,"2026-03-31","TTC Rotation Weimar V3","TSG Apolda",null,null,"31.3.26:252079:TTC Rotation Weimar V3:TSG Apolda"]
[null,252080,"2026-04-02","ZLSG Wormstedt 3","BSV 04 Bad Berka F3",null,null,"02.4.26:252080:ZLSG Wormstedt 3:BSV 04 Bad Berka F3"]
[17,252081,"2026-04-23","ZLSG Wormstedt 2","Medizin Blankenhain 2",null,null,"23.4.26:252081:ZLSG Wormstedt 2:Medizin Blankenhain 2"]
[null,252082,"2026-04-22","Fortuna Großschwabhausen 2","ZLSG Wormstedt 3",null,null,"22.4.26:252082:Fortuna Großschwabhausen 2:ZLSG Wormstedt 3"]
[null,252083,"2026-04-21","Fortuna Großschwabhausen 3","TSV 1914 Berlstedt 2",null,null,"21.4.26:252083:Fortuna Großschwabhausen 3:TSV 1914 Berlstedt 2"]
[null,252084,"2026-04-22","TSG Apolda","Rotation Tannroda 2",null,null,"22.4.26:252084:TSG Apolda:Rotation Tannroda 2"]
[null,252085,"2026-04-20","BSV 04 Bad Berka F3","TTC Rotation Weimar V3",null,null,"20.4.26:252085:BSV 04 Bad Berka F3:TTC Rotation Weimar V3"]
[18,252086,"2026-05-06","Fortuna Großschwabhausen 2","ZLSG Wormstedt 2",null,null,"06.5.26:252086:Fortuna Großschwabhausen 2:ZLSG Wormstedt 2"]
[null,252087,"2026-05-08","Medizin Blankenhain 2","Fortuna Großschwabhausen 3",null,null,"08.5.26:252087:Medizin Blankenhain 2:Fortuna Großschwabhausen 3"]
[null,252088,"2026-05-07","TSV 1914 Berlstedt 2","TSG Apolda",null,null,"07.5.26:252088:TSV 1914 Berlstedt 2:TSG Apolda"]
[null,252089,"2026-05-08","Rotation Tannroda 2","BSV 04 Bad Berka F3",null,null,"08.5.26:252089:Rotation Tannroda 2:BSV 04 Bad Berka F3"]
[null,252090,"2026-05-07","ZLSG Wormstedt 3","TTC Rotation Weimar V3",null,null,"07.5.26:252090:ZLSG Wormstedt 3:TTC Rotation Weimar V3"]
[null,123456,"POKAL 3er","für Pokalspiel die 123456 wählen",null,null,null,{"$f":"TEXT(C48,\"TT.M.JJ\")& \":\"&B48&\":\"&D48&\":\"&E48","v":"POKAL 3er:123456:für Pokalspiel die 123456 wählen:"}]

{"sheet":"Spiele Staffel 3","index":2,"n_rows":33,"n_cols":8,"rows_kept":33,"cut":false,"hidden":true,"merged":[]}
["Mannschaftsmeisterschaft 3.Liga ",null,null,null,null,null,null,"STAFFEL 3 Spiel Wählen"]
["ST","Nr.","Datum","Gastgeber","Gast",null,null,"POKAL 3er:123456:für Pokalspiel"]
[null,253301,"2026-02-13","TTC Rotation Weimar V4","Weimarer SV",null,null,{"$f":"TEXT(C3,\"TT.M.JJ\")& \":\"&B3&\":\"&D3&\":\"&E3","v":"13.2.26:253301:TTC Rotation Weimar V4:Weimarer SV"}]
[null,253302,"2026-02-11","KSSV Viktoria Weimar 2","TSV 1914 Berlstedt 3",null,null,"11.2.26:253302:KSSV Viktoria Weimar 2:TSV 1914 Berlstedt 3"]
[null,253303,"2026-02-13","Rotation Tannroda 3","TSG Apolda 2",null,null,"13.2.26:253303:Rotation Tannroda 3:TSG Apolda 2"]
[null,253304,"2026-02-26","TSV 1914 Berlstedt 3","TTC Rotation Weimar V4",null,null,"26.2.26:253304:TSV 1914 Berlstedt 3:TTC Rotation Weimar V4"]
[null,253305,"2026-02-27","TSG Apolda 2","KSSV Viktoria Weimar 2",null,null,"27.2.26:253305:TSG Apolda 2:KSSV Viktoria Weimar 2"]
[null,253306,"2026-02-26","Weimarer SV","Rotation Tannroda 3",null,null,"26.2.26:253306:Weimarer SV:Rotation Tannroda 3"]
[null,253307,"2026-03-06","TTC Rotation Weimar V4","TSG Apolda 2",null,null,"06.3.26:253307:TTC Rotation Weimar V4:TSG Apolda 2"]
[null,253308,"2026-03-04","KSSV Viktoria Weimar 2","Rotation Tannroda 3",null,null,"04.3.26:253308:KSSV Viktoria Weimar 2:Rotation Tannroda 3"]
[null,253309,"2026-03-05","TSV 1914 Berlstedt 3","Weimarer SV",null,null,"05.3.26:253309:TSV 1914 Berlstedt 3:Weimarer SV"]
[null,253310,"2026-03-13","Rotation Tannroda 3","TTC Rotation Weimar V4",null,null,"13.3.26:253310:Rotation Tannroda 3:TTC Rotation Weimar V4"]
[null,253311,"2026-03-12","Weimarer SV","KSSV Viktoria Weimar 2",null,null,"12.3.26:253311:Weimarer SV:KSSV Viktoria Weimar 2"]
[null,253312,"2026-03-13","TSG Apolda 2","TSV 1914 Berlstedt 3",null,null,"13.3.26:253312:TSG Apolda 2:TSV 1914 Berlstedt 3"]
[null,253313,"2026-03-20","TTC Rotation Weimar V4","KSSV Viktoria Weimar 2",null,null,"20.3.26:253313:TTC Rotation Weimar V4:KSSV Viktoria Weimar 2"]
[null,253314,"2026-03-19","TSV 1914 Berlstedt 3","Rotation Tannroda 3",null,null,"19.3.26:253314:TSV 1914 Berlstedt 3:Rotation Tannroda 3"]
[null,253315,"2026-03-19","Weimarer SV","TSG Apolda 2",null,null,"19.3.26:253315:Weimarer SV:TSG Apolda 2"]
[null,253316,"2026-03-26","Weimarer SV","TTC Rotation Weimar V4",null,null,"26.3.26:253316:Weimarer SV:TTC Rotation Weimar V4"]
[null,253317,"2026-03-26","TSV 1914 Berlstedt 3","KSSV Viktoria Weimar 2",null,null,"26.3.26:253317:TSV 1914 Berlstedt 3:KSSV Viktoria Weimar 2"]
[null,253318,"2026-03-27","TSG Apolda 2","Rotation Tannroda 3",null,null,"27.3.26:253318:TSG Apolda 2:Rotation Tannroda 3"]
[null,253319,"2026-04-10","TTC Rotation Weimar V4","TSV 1914 Berlstedt 3",null,null,"10.4.26:253319:TTC Rotation Weimar V4:TSV 1914 Berlstedt 3"]
[null,253320,"2026-04-01","KSSV Viktoria Weimar 2","TSG Apolda 2",null,null,"01.4.26:253320:KSSV Viktoria Weimar 2:TSG Apolda 2"]
[null,253321,"2026-04-10","Rotation Tannroda 3","Weimarer SV",null,null,"10.4.26:253321:Rotation Tannroda 3:Weimarer SV"]
[null,253322,"2026-04-24","TSG Apolda 2","TTC Rotation Weimar V4",null,null,"24.4.26:253322:TSG Apolda 2:TTC Rotation Weimar V4"]
[null,253323,"2026-04-24","Rotation Tannroda 3","KSSV Viktoria Weimar 2",null,null,"24.4.26:253323:Rotation Tannroda 3:KSSV Viktoria Weimar 2"]
[null,253324,"2026-04-23","Weimarer SV","TSV 1914 Berlstedt 3",null,null,"23.4.26:253324:Weimarer SV:TSV 1914 Berlstedt 3"]
[null,253325,"2026-05-08","TTC Rotation Weimar V4","Rotation Tannroda 3",null,null,"08.5.26:253325:TTC Rotation Weimar V4:Rotation Tannroda 3"]
[null,253326,"2026-05-08","KSSV Viktoria Weimar 2","Weimarer SV",null,null,"08.5.26:253326:KSSV Viktoria Weimar 2:Weimarer SV"]
[null,253327,"2026-05-07","TSV 1914 Berlstedt 3","TSG Apolda 2",null,null,"07.5.26:253327:TSV 1914 Berlstedt 3:TSG Apolda 2"]
[null,253328,"2026-05-13","KSSV Viktoria Weimar 2","TTC Rotation Weimar V4",null,null,"13.5.26:253328:KSSV Viktoria Weimar 2:TTC Rotation Weimar V4"]
[null,253329,"2026-05-15","Rotation Tannroda 3","TSV 1914 Berlstedt 3",null,null,"15.5.26:253329:Rotation Tannroda 3:TSV 1914 Berlstedt 3"]
[null,253330,"2026-05-15","TSG Apolda 2","Weimarer SV",null,null,"15.5.26:253330:TSG Apolda 2:Weimarer SV"]
[null,123456,"POKAL 3er","für Pokalspiel die 123456 wählen"]

{"sheet":"Spiele Staffel 4","index":3,"n_rows":24,"n_cols":8,"rows_kept":24,"cut":false,"hidden":true,"merged":[]}
["Mannschaftsmeisterschaft 4.Liga - ",null,null,null,null,null,null,"STAFFEL 4 Spiel Wählen"]
["ST","Nr.","Datum","Gastgeber","Gast",null,null,"POKAL 3er:123456:für Pokalspiel"]
[null,253401,"2026-02-13","KSSV Viktoria Weimar 3","TTC Rotation Weimar V5",null,null,{"$f":"TEXT(C3,\"TT.M.JJ\")& \":\"&B3&\":\"&D3&\":\"&E3","v":"13.2.26:253401:KSSV Viktoria Weimar 3:TTC Rotation Weimar V5"}]
[null,253402,"2026-02-12","Fortuna Großschwabhausen 4","BSV 04 Bad Berka F4",null,null,"12.2.26:253402:Fortuna Großschwabhausen 4:BSV 04 Bad Berka F4"]
[null,253403,"2026-02-09","ZLSG Wormstedt 4","Musashi Weimar",null,null,"09.2.26:253403:ZLSG Wormstedt 4:Musashi Weimar"]
[null,253404,"2026-02-27","TTC Rotation Weimar V5","Fortuna Großschwabhausen 4",null,null,"27.2.26:253404:TTC Rotation Weimar V5:Fortuna Großschwabhausen 4"]
[null,253405,"2026-02-26","BSV 04 Bad Berka F4","ZLSG Wormstedt 4",null,null,"26.2.26:253405:BSV 04 Bad Berka F4:ZLSG Wormstedt 4"]
[null,253406,"2026-02-27","Rotation Tannroda 4","KSSV Viktoria Weimar 3",null,null,"27.2.26:253406:Rotation Tannroda 4:KSSV Viktoria Weimar 3"]
[null,253407,"2026-03-02","ZLSG Wormstedt 4","TTC Rotation Weimar V5",null,null,"02.3.26:253407:ZLSG Wormstedt 4:TTC Rotation Weimar V5"]
[null,253408,"2026-03-06","Rotation Tannroda 4","Musashi Weimar",null,null,"06.3.26:253408:Rotation Tannroda 4:Musashi Weimar"]
[null,253409,"2026-03-06","KSSV Viktoria Weimar 3","Fortuna Großschwabhausen 4",null,null,"06.3.26:253409:KSSV Viktoria Weimar 3:Fortuna Großschwabhausen 4"]
[null,253410,"2026-03-12","BSV 04 Bad Berka F4","Rotation Tannroda 4",null,null,"12.3.26:253410:BSV 04 Bad Berka F4:Rotation Tannroda 4"]
[null,253411,"2026-03-10","Musashi Weimar","KSSV Viktoria Weimar 3",null,null,"10.3.26:253411:Musashi Weimar:KSSV Viktoria Weimar 3"]
[null,253412,"2026-03-12","Fortuna Großschwabhausen 4","ZLSG Wormstedt 4",null,null,"12.3.26:253412:Fortuna Großschwabhausen 4:ZLSG Wormstedt 4"]
[null,253413,"2026-03-20","Rotation Tannroda 4","TTC Rotation Weimar V5",null,null,"20.3.26:253413:Rotation Tannroda 4:TTC Rotation Weimar V5"]
[null,253414,"2026-03-17","Musashi Weimar","BSV 04 Bad Berka F4",null,null,"17.3.26:253414:Musashi Weimar:BSV 04 Bad Berka F4"]
[null,253415,"2026-03-20","KSSV Viktoria Weimar 3","ZLSG Wormstedt 4",null,null,"20.3.26:253415:KSSV Viktoria Weimar 3:ZLSG Wormstedt 4"]
[null,253416,"2026-03-27","TTC Rotation Weimar V5","Musashi Weimar",null,null,"27.3.26:253416:TTC Rotation Weimar V5:Musashi Weimar"]
[null,253417,"2026-03-26","BSV 04 Bad Berka F4","KSSV Viktoria Weimar 3",null,null,"26.3.26:253417:BSV 04 Bad Berka F4:KSSV Viktoria Weimar 3"]
[null,253418,"2026-03-26","Fortuna Großschwabhausen 4","Rotation Tannroda 4",null,null,"26.3.26:253418:Fortuna Großschwabhausen 4:Rotation Tannroda 4"]
[null,253419,"2026-04-02","BSV 04 Bad Berka F4","TTC Rotation Weimar V5",null,null,"02.4.26:253419:BSV 04 Bad Berka F4:TTC Rotation Weimar V5"]
[null,253420,"2026-03-31","Musashi Weimar","Fortuna Großschwabhausen 4",null,null,"31.3.26:253420:Musashi Weimar:Fortuna Großschwabhausen 4"]
[null,253421,"2026-04-01","Rotation Tannroda 4","ZLSG Wormstedt 4",null,null,"01.4.26:253421:Rotation Tannroda 4:ZLSG Wormstedt 4"]
[null,123456,"POKAL 3er","für Pokalspiel die 123456 wählen",null,null,null,"POKAL 3er:123456:für Pokalspiel die 123456 wählen:"]

{"sheet":"Mannschaften","index":4,"n_rows":34,"n_cols":7,"rows_kept":34,"cut":false,"hidden":true,"merged":[]}
["Staffel1","Staffel2","Staffel3","Staffel4","Alle_Staffeln_Pokal"]
["BSV_04_Bad_Berka_F1","ZLSG_Wormstedt_2","TSG_Apolda_2","KSSV_Victoria_Weimar_3","BSV_04_Bad_Berka_F1",null,"Staffel1"]
["Fort._Großschwabhausen_1","TSG_Apolda_1","SG_Rot._Tannroda_3","TTC_Rotation_Weimar_V5","Fort._Großschwabhausen_1",null,"Staffel2"]
["ZLSG_Wormstedt_1","TTC_Rotation_Weimar_V3","TSV_1914_Berlstedt_3","Fort._Großschwabhausen_4","ZLSG_Wormstedt_1",null,"Staffel3"]
["TSV_1914_Berlstedt_1","ZLSG_Wormstedt_3","KSSV_Victoria_Weimar_2","Musashi_Weimar","TSV_1914_Berlstedt_1",null,"Staffel4"]
["SG_Rotation_Tannroda_1","Fort._Großschwabhausen_2","Weimarer_SV_1","ZLSG_Wormstedt_4","SG_Rotation_Tannroda_1",null,"Alle_Staffeln_Pokal"]
["KSSV_Victoria_Weimar_1","TSV_1914_Berlstedt_2","TTC_Rotation_Weimar_V4","BSV_04_Bad_Berka_F4","KSSV_Victoria_Weimar_1"]
["TTC_Rotation_Weimar_V1","Medizin_Blankenhain_2",null,"SG_Rot._Tannroda_4","TTC_Rotation_Weimar_V1"]
["TTC_Rotation_Weimar_V2","BSV_04_Bad_Berka_F3",null,null,"TTC_Rotation_Weimar_V2"]
["BSV_04_Bad_Berka_F2","SG_Rotation_Tannroda_2",null,null,"BSV_04_Bad_Berka_F2"]
["Medizin_Blankenhain_1","Fort._Großschwabhausen_3",null,null,"Medizin_Blankenhain_1"]
[null,null,null,null,"ZLSG_Wormstedt_2"]
[null,null,null,null,"TSG_Apolda_1"]
[null,null,null,null,"TTC_Rotation_Weimar_V3"]
[null,null,null,null,"ZLSG_Wormstedt_3"]
[null,null,null,null,"Fort._Großschwabhausen_2"]
[null,null,null,null,"TSV_1914_Berlstedt_2"]
[null,null,null,null,"Medizin_Blankenhain_2"]
[null,null,null,null,"BSV_04_Bad_Berka_F3"]
[null,null,null,null,"SG_Rotation_Tannroda_2"]
[null,null,null,null,"Fort._Großschwabhausen_3"]
[null,null,null,null,"Weimarer_SV_1"]
[null,null,null,null,"SG_Rot._Tannroda_3"]
[null,null,null,null,"KSSV_Victoria_Weimar_3"]
[null,null,null,null,"TSV_1914_Berlstedt_3"]
[null,null,null,null,"TTC_Rotation_Weimar_V5"]
[null,null,null,null,"Fort._Großschwabhausen_4"]
[null,null,null,null,"Musashi_Weimar"]
[null,null,null,null,"KSSV_Victoria_Weimar_2"]
[null,null,null,null,"ZLSG_Wormstedt_4"]
[null,null,null,null,"TTC_Rotation_Weimar_V4"]
[null,null,null,null,"TSG_Apolda_2"]
[null,null,null,null,"BSV_04_Bad_Berka_F4"]
[null,null,null,null,"SG_Rot._Tannroda_4"]

{"sheet":"Spielerzuordnung","index":5,"n_rows":333,"n_cols":6,"rows_kept":333,"cut":false,"hidden":true,"merged":[]}
["Name",null,"Koeff.","Verein"]
[null,null,null,null,null,"BSV_04_Bad_Berka_F1"]
["Plomitzer, Thomas",null,3.4,"BSV_04_Bad_Berka_F1",null,{"$f":"A3&B3&\" :\"&LEFT(C3,10)","v":"Plomitzer, Thomas :3,4"}]
["Röse, Peter",null,3.0910000000000002,"BSV_04_Bad_Berka_F1",null,{"$f":"A4&B4&\" :\"&LEFT(C4,10)","v":"Röse, Peter :3,091"}]
["Hawlicki, Martin",null,2.9329999999999998,"BSV_04_Bad_Berka_F1",null,"Hawlicki, Martin :2,933"]
["Klos, Heiko",null,2.2000000000000002,"BSV_04_Bad_Berka_F1",null,"Klos, Heiko :2,2"]
[null,null,null,null,null,"Spalte1"]
["Lytovshenko, Eugen",null,2.8,"BSV_04_Bad_Berka_F2",null,"Lytovshenko, Eugen :2,8"]
["König, Thomas"," ",1.8180000000000001,"BSV_04_Bad_Berka_F2",null,{"$f":"A9&B9&\" :\"&LEFT(C9,10)","v":"König, Thomas  :1,818"}]
["Pappenberg, Jan",null,1.788,"BSV_04_Bad_Berka_F2",null,"Pappenberg, Jan :1,788"]
["Wollmann, Dirk",null,1.5649999999999999,"BSV_04_Bad_Berka_F2",null,{"$f":"A11&B11&\" :\"&LEFT(C11,10)","v":"Wollmann, Dirk :1,565"}]
["Wiede, Luise",null,0.95599999999999996,"BSV_04_Bad_Berka_F2",null,{"$f":"A12&B12&\" :\"&LEFT(C12,10)","v":"Wiede, Luise :0,956"}]
["Burschberg, Swen",null,0.92300000000000004,"BSV_04_Bad_Berka_F2",null,"Burschberg, Swen :0,923"]
[null,null,null,null,null,"Fort._Großschwabhausen_1"]
["Nitsche, Frederik",null,4,"Fort._Großschwabhausen_1",null,"Nitsche, Frederik :4"]
["Grau, Kevin",null,2.621,"Fort._Großschwabhausen_1",null,"Grau, Kevin :2,621"]
["Liebig, Ringo",null,1.778,"Fort._Großschwabhausen_1",null,"Liebig, Ringo :1,778"]
["Hänsgen, Marcel",null,1.2410000000000001,"Fort._Großschwabhausen_1",null,"Hänsgen, Marcel :1,241"]
[null,null,null,null,null,"Fortuna_Großschwabhausen_2"]
["Brückner, Jürgen",null,2.3450000000000002,"Fort._Großschwabhausen_2",null,"Brückner, Jürgen :2,345"]
["Wenke, Wolfram",null,1.76,"Fort._Großschwabhausen_2",null,"Wenke, Wolfram :1,76"]
["Brückner, Steffen",null,1.143,"Fort._Großschwabhausen_2",null,"Brückner, Steffen :1,143"]
["Luu, Dung",null,0,"Fort._Großschwabhausen_2",null,"Luu, Dung :0"]
[null,null,null,null,null,"Medizin_Blankenhain_1"]
["Geißler, Robert",null,3.5859999999999999,"Medizin_Blankenhain_1",null,"Geißler, Robert :3,586"]
["Schramke, Michael",null,0.85699999999999998,"Medizin_Blankenhain_1",null,"Schramke, Michael :0,857"]
["Kunze-Mroz, Stephan",null,0.77400000000000002,"Medizin_Blankenhain_1",null,"Kunze-Mroz, Stephan :0,774"]
["Huskobla, Maik",null,0.25,"Medizin_Blankenhain_1",null,{"$f":"A28&B28&\" :\"&LEFT(C28,10)","v":"Huskobla, Maik :0,25"}]
[null,null,null,null,null,"SG_Rotation_Tannroda_2"]
["Hegenbarth, Moritz",null,3.0339999999999998,"SG_Rotation_Tannroda_2",null,"Hegenbarth, Moritz :3,034"]
["Michaelis, Jörg",null,2.452,"SG_Rotation_Tannroda_2",null,"Michaelis, Jörg :2,452"]
["Nauber, Nils",null,"2,364 (3.L)","SG_Rotation_Tannroda_2",null,"Nauber, Nils :2,364 (3.L"]
["Schwager, Matthias",null,1.391,"SG_Rotation_Tannroda_2",null,"Schwager, Matthias :1,391"]
[null,null,null,null,null,"SG_Rotation_Tannroda_1"]
["Wedekind, Frederick",null,3.0859999999999999,"SG_Rotation_Tannroda_1",null,"Wedekind, Frederick :3,086"]
["Singer, Nicklas",null,3.04,"SG_Rotation_Tannroda_1",null,"Singer, Nicklas :3,04"]
["Mendler, Uwe",null,2.4,"SG_Rotation_Tannroda_1",null,"Mendler, Uwe :2,4"]
["Gehrhardt, Christoph",null,1.857,"SG_Rotation_Tannroda_1",null,"Gehrhardt, Christoph :1,857"]
[null,null,null,null,null,"TSG_Apolda_1"]
["Baldorj, Batsurem",null,3.81,"TSG_Apolda_1",null,"Baldorj, Batsurem :3,81"]
["Seifarth Siegfried",null,3.2589999999999999,"TSG_Apolda_1",null,"Seifarth Siegfried :3,259"]
["Knobloch, Dirk",null,3.1429999999999998,"TSG_Apolda_1",null,"Knobloch, Dirk :3,143"]
["Gast, Friedhelm",null,1.714,"TSG_Apolda_1",null,"Gast, Friedhelm :1,714"]
[null,null,null,null,null,"TSV_1914_Berlstedt_1"]
["Schröter, Jörg",null,2.7690000000000001,"TSV_1914_Berlstedt_1",null,{"$f":"A45&B45&\" :\"&LEFT(C45,10)","v":"Schröter, Jörg :2,769"}]
["Knobloch, Michael",null,2.1179999999999999,"TSV_1914_Berlstedt_1",null,"Knobloch, Michael :2,118"]
["Danzer, Stefan",null,1.913,"TSV_1914_Berlstedt_1",null,"Danzer, Stefan :1,913"]
["Pfaffe,  Wolfgang",null,1.714,"TSV_1914_Berlstedt_1",null,"Pfaffe,  Wolfgang :1,714"]
[null,null,null,null,null,"TTC_Rotation_Weimar_V1"]
["Worms, Udo",null,"1.KL","TTC_Rotation_Weimar_V1",null,{"$f":"A50&B50&\" :\"&LEFT(C50,10)","v":"Worms, Udo :1.KL"}]
["Hasenauer, Christof",null,"3,660 (22/23)","TTC_Rotation_Weimar_V1",null,"Hasenauer, Christof :3,660 (22/"]
["Erler, Nick",null,3.226,"TTC_Rotation_Weimar_V1",null,"Erler, Nick :3,226"]
["Schöne, Georg",null,3.077,"TTC_Rotation_Weimar_V1",null,{"$f":"A53&B53&\" :\"&LEFT(C53,10)","v":"Schöne, Georg :3,077"}]
["Hüttl, Harald",null,2.3530000000000002,"TTC_Rotation_Weimar_V1",null,{"$f":"A54&B54&\" :\"&LEFT(C54,10)","v":"Hüttl, Harald :2,353"}]
["Götze, Martin",null,0.8,"TTC_Rotation_Weimar_V1",null,{"$f":"A55&B55&\" :\"&LEFT(C55,10)","v":"Götze, Martin :0,8"}]
["Schulz, Astrid",null,0.66700000000000004,"TTC_Rotation_Weimar_V1",null,{"$f":"A56&B56&\" :\"&LEFT(C56,10)","v":"Schulz, Astrid :0,667"}]
[null,null,null,null,null,"Weimarer_SV_1"]
["Wobser, Jürgen",null,4,"Weimarer_SV_1",null,{"$f":"A58&B58&\" :\"&LEFT(C58,10)","v":"Wobser, Jürgen :4"}]
["Nöckel, Andreas",null,3.5790000000000002,"Weimarer_SV_1",null,"Nöckel, Andreas :3,579"]
["Scholz, Ronny",null,2.8,"Weimarer_SV_1",null,"Scholz, Ronny :2,8"]
["Geburtig, Gerd",null,2.3330000000000002,"Weimarer_SV_1",null,"Geburtig, Gerd :2,333"]
["Berndt, Manfred",null,"1,867 (23/24)","Weimarer_SV_1",null,{"$f":"A62&B62&\" :\"&LEFT(C62,10)","v":"Berndt, Manfred :1,867 (23/"}]
["Barth, Thomas",null,1.333,"Weimarer_SV_1",null,"Barth, Thomas :1,333"]
["Hubert, Michael",null,"0,800 (22/23)","Weimarer_SV_1",null,{"$f":"A64&B64&\" :\"&LEFT(C64,10)","v":"Hubert, Michael :0,800 (22/"}]
[null,null,null,null,null,"BSV_04_Bad_Berka_F3"]
["Kallenbach, Rainer",null,"2,182 (1.L24/25)","BSV_04_Bad_Berka_F3",null,{"$f":"A66&B66&\" :\"&LEFT(C66,10)","v":"Kallenbach, Rainer :2,182 (1.L"}]
["Quett, Noah",null,2.8149999999999999,"BSV_04_Bad_Berka_F3",null,"Quett, Noah :2,815"]
["Brückner, Oliver",null,1.6839999999999999,"BSV_04_Bad_Berka_F3",null,"Brückner, Oliver :1,684"]
["Christ, Holger",null,1.1850000000000001,null,null,"Christ, Holger :1,185"]
["Grau, Mathias",null,0.90900000000000003,"BSV_04_Bad_Berka_F3",null,"Grau, Mathias :0,909"]
[null,null,null,null,null,"Fort._Großschwabhausen_3"]
["Kohl, Matthias",null,3.1720000000000002,"Fort._Großschwabhausen_3",null,{"$f":"A72&B72&\" :\"&LEFT(C72,10)","v":"Kohl, Matthias :3,172"}]
["Reule , Andi",null,2.1819999999999999,"Fort._Großschwabhausen_3",null,"Reule , Andi :2,182"]
["Blume, Thomas",null,1.571,"Fort._Großschwabhausen_3",null,"Blume, Thomas :1,571"]
["Schröder, Berthold",null,0.85699999999999998,"Fort._Großschwabhausen_3",null,"Schröder, Berthold :0,857"]
["Loos, Arne",null,"2,500 (3.L23/24)","Fort._Großschwabhausen_3",null,{"$f":"A76&B76&\" :\"&LEFT(C76,10)","v":"Loos, Arne :2,500 (3.L"}]
[null,null,null,null,null,"KSSV_Victoria_Weimar_1"]
["Große, Andreas",null,3.355,"KSSV_Victoria_Weimar_1",null,{"$f":"A78&B78&\" :\"&LEFT(C78,10)","v":"Große, Andreas :3,355"}]
["Köhler, Martin",null,3.1110000000000002,"KSSV_Victoria_Weimar_1",null,"Köhler, Martin :3,111"]
["Pfundheller, Felix",null,1.167,"KSSV_Victoria_Weimar_1",null,"Pfundheller, Felix :1,167"]
["Herold, Michael",null,0.83299999999999996,"KSSV_Victoria_Weimar_1",null,"Herold, Michael :0,833"]
[null,null,null,null,null,"TSV_1914_Berlstedt_2"]
["Berger, Gerrit",null,2.72,"TSV_1914_Berlstedt_2",null,{"$f":"A83&B83&\" :\"&LEFT(C83,10)","v":"Berger, Gerrit :2,72"}]
["Benkenstein, Andreas",null,1.4810000000000001,"TSV_1914_Berlstedt_2",null,"Benkenstein, Andreas :1,481"]
["Hochstein, Andreas",null,1.2170000000000001,"TSV_1914_Berlstedt_2",null,"Hochstein, Andreas :1,217"]
["Horak, Ron",null,0.6,"TSV_1914_Berlstedt_2",null,"Horak, Ron :0,6"]
[null,null,null,null,null,"TTC_Rotation_Weimar_V2"]
["Thierfelder, Philipp",null,"3,127 (24/25)","TTC_Rotation_Weimar_V2",null,{"$f":"A88&B88&\" :\"&LEFT(C88,10)","v":"Thierfelder, Philipp :3,127 (24/"}]
["Kohlstedt, Martin",null,3.1110000000000002,"TTC_Rotation_Weimar_V2",null,{"$f":"A89&B89&\" :\"&LEFT(C89,10)","v":"Kohlstedt, Martin :3,111"}]
["Lott, Martin",null,2.75,"TTC_Rotation_Weimar_V2",null,"Lott, Martin :2,75"]
["Kiesel, Jakob",null,"2,703 (24/25)","TTC_Rotation_Weimar_V2",null,"Kiesel, Jakob :2,703 (24/"]
["Würzburg, Martin",null,"2,435 (24/25)","TTC_Rotation_Weimar_V2",null,"Würzburg, Martin :2,435 (24/"]
["Riese, Sven",null,"2,128 (24/25)","TTC_Rotation_Weimar_V2",null,{"$f":"A93&B93&\" :\"&LEFT(C93,10)","v":"Riese, Sven :2,128 (24/"}]
["Johnson, Trevor",null,1.9350000000000001,"TTC_Rotation_Weimar_V2",null,"Johnson, Trevor :1,935"]
["Heinje, Dirk",null,"1,917 (24/25)","TTC_Rotation_Weimar_V2",null,"Heinje, Dirk :1,917 (24/"]
["Seel, Richard",null,1.6,"TTC_Rotation_Weimar_V2",null,"Seel, Richard :1,6"]
["Arenswald, Ralf",null,1.29,"TTC_Rotation_Weimar_V2",null,"Arenswald, Ralf :1,29"]
[null,null,null,null,null,"Medizin_Blankenhain_2"]
["Eckardt, Hans-Peter",null,"0,824 (1.L21/22)","Medizin_Blankenhain_2",null,{"$f":"A99&B99&\" :\"&LEFT(C99,10)","v":"Eckardt, Hans-Peter :0,824 (1.L"}]
["Taubert, Anja",null,3.355,"Medizin_Blankenhain_2",null,{"$f":"A100&B100&\" :\"&LEFT(C100,10)","v":"Taubert, Anja :3,355"}]
["Grau, Detlef",null,2.3639999999999999,"Medizin_Blankenhain_2",null,{"$f":"A101&B101&\" :\"&LEFT(C101,10)","v":"Grau, Detlef :2,364"}]
["van Elsen, Laurell",null,1.29,"Medizin_Blankenhain_2",null,{"$f":"A102&B102&\" :\"&LEFT(C102,10)","v":"van Elsen, Laurell :1,29"}]
["Jaranowski, Klaus",null,1.091,"Medizin_Blankenhain_2",null,"Jaranowski, Klaus :1,091"]
["Michel, Horst",null,"3,467 (3.L24/25)","Medizin_Blankenhain_2",null,{"$f":"A104&B104&\" :\"&LEFT(C104,10)","v":"Michel, Horst :3,467 (3.L"}]
["Sorge, Lucas",null,"3,368 (3.L24/25)","Medizin_Blankenhain_2",null,"Sorge, Lucas :3,368 (3.L"]
["Junghanß, Mario",null,"1,046 (3.L24/25)","Medizin_Blankenhain_2",null,"Junghanß, Mario :1,046 (3.L"]
["Römer, Mike",null,"0,766 (3.L24/25)","Medizin_Blankenhain_2",null,"Römer, Mike :0,766 (3.L"]
["Döbert, Daniel",null,0,"Medizin_Blankenhain_2",null,"Döbert, Daniel :0"]
[null,null,null,null,null,"ZLSG_Wormstedt_1"]
["Kube, Martin",null,2.7589999999999999,"ZLSG_Wormstedt_1",null,{"$f":"A110&B110&\" :\"&LEFT(C110,10)","v":"Kube, Martin :2,759"}]
["Pietsch, Sebastian",null,2.2610000000000001,"ZLSG_Wormstedt_1",null,{"$f":"A111&B111&\" :\"&LEFT(C111,10)","v":"Pietsch, Sebastian :2,261"}]
["Kirchhoff, Michael",null,1.7330000000000001,"ZLSG_Wormstedt_1",null,"Kirchhoff, Michael :1,733"]
["Junge, Michael",null,1.2629999999999999,"ZLSG_Wormstedt_1",null,"Junge, Michael :1,263"]
[null,null,null,null,null,"ZLSG_Wormstedt_2"]
["Schmidt-Apel, Heiko",null,3.2,"ZLSG_Wormstedt_2",null,{"$f":"A115&B115&\" :\"&LEFT(C115,10)","v":"Schmidt-Apel, Heiko :3,2"}]
["Krug, Norman",null,3,"ZLSG_Wormstedt_2",null,"Krug, Norman :3"]
["Fehre, Jürgen",null,2.72,"ZLSG_Wormstedt_2",null,"Fehre, Jürgen :2,72"]
["Karst, Daniel",null,2.1429999999999998,"ZLSG_Wormstedt_2",null,"Karst, Daniel :2,143"]
[null,null,null,null,null,"Fort._Großschwabhausen_4"]
["Grau, Diethard",null,"3,710 (22/23)","Fort._Großschwabhausen_4",null,{"$f":"A120&B120&\" :\"&LEFT(C120,10)","v":"Grau, Diethard :3,710 (22/"}]
["Albert, Dieter",null,1.5,"Fort._Großschwabhausen_4",null,"Albert, Dieter :1,5"]
["Dobschal, Jürgen",null,1.5,"Fort._Großschwabhausen_4",null,"Dobschal, Jürgen :1,5"]
["Golke, Rüdiger",null,"1,481 (24/25)",null,null,{"$f":"A123&B123&\" :\"&LEFT(C123,10)","v":"Golke, Rüdiger :1,481 (24/"}]
["Köhler, Lothar",null,0.85699999999999998,null,null,{"$f":"A124&B124&\" :\"&LEFT(C124,10)","v":"Köhler, Lothar :0,857"}]
["König, Alexa",null,0.61499999999999999,"Fort._Großschwabhausen_4",null,"König, Alexa :0,615"]
["Both, Johannes",null,0,"Fort._Großschwabhausen_4",null,"Both, Johannes :0"]
["Thümmel, Maik",null,0,"Fort._Großschwabhausen_4",null,"Thümmel, Maik :0"]
["Kasch, Thomas",null,0,"Fort._Großschwabhausen_4",null,"Kasch, Thomas :0"]
["Kasch, Benjamin",null,0,"Fort._Großschwabhausen_4",null,"Kasch, Benjamin :0"]
["Schulze-Sandow, Holger",null,0,"Fort._Großschwabhausen_4",null,{"$f":"A130&B130&\" :\"&LEFT(C130,10)","v":"Schulze-Sandow, Holger :0"}]
[null,null,null,null,null,"BSV_04_Bad_Berka_F4"]
["Niebling, Saskia",null,"3,459 (24/25)","BSV_04_Bad_Berka_F4",null,"Niebling, Saskia :3,459 (24/"]
["Prokopp, Sebastian",null,1.4550000000000001,"BSV_04_Bad_Berka_F4",null,"Prokopp, Sebastian :1,455"]
["Plomitzer, Manfred",null,"1,412 (24/25)","BSV_04_Bad_Berka_F4",null,{"$f":"A134&B134&\" :\"&LEFT(C134,10)","v":"Plomitzer, Manfred :1,412 (24/"}]
["Raack, Andreas",null,1.143,"BSV_04_Bad_Berka_F4",null,"Raack, Andreas :1,143"]
["Fischer, Thomas",null,"1,000 (24/25)","BSV_04_Bad_Berka_F4",null,"Fischer, Thomas :1,000 (24/"]
["Köhler, Florian",null,0.66700000000000004,"BSV_04_Bad_Berka_F4",null,"Köhler, Florian :0,667"]
["Niebling, Holger",null,"0,560 (24/25)","BSV_04_Bad_Berka_F4",null,"Niebling, Holger :0,560 (24/"]
["Eschholz, Martin",null,0,"BSV_04_Bad_Berka_F4",null,"Eschholz, Martin :0"]
["Hoffmann, Franz-Alois",null,"0,000 (J)","BSV_04_Bad_Berka_F4",null,"Hoffmann, Franz-Alois :0,000 (J)"]
["Gelmroth, Tim",null,"0,000 (J)","BSV_04_Bad_Berka_F4",null,"Gelmroth, Tim :0,000 (J)"]
["Laue, Silas",null,"0,000 (J)","BSV_04_Bad_Berka_F4",null,"Laue, Silas :0,000 (J)"]
["Graf, Katrin",null,0,"BSV_04_Bad_Berka_F4",null,"Graf, Katrin :0"]
["Krummrich, Felix",null,0,"BSV_04_Bad_Berka_F4",null,"Krummrich, Felix :0"]
[null,null,null,null,null,"TTC_Rotation_Weimar_V4"]
["Freixa, Victor",null,4,"TTC_Rotation_Weimar_V4",null,"Freixa, Victor :4"]
["Schiek, Stefan",null,4,"TTC_Rotation_Weimar_V4",null,"Schiek, Stefan :4"]
["Lau, Ludmilla",null,3.1429999999999998,"TTC_Rotation_Weimar_V4",null,"Lau, Ludmilla :3,143"]
["Weisig, Stefan",null,2.9329999999999998,null,null,{"$f":"A149&B149&\" :\"&LEFT(C149,10)","v":"Weisig, Stefan :2,933"}]
["Meinhof, Franz",null,0,"TTC_Rotation_Weimar_V4",null,"Meinhof, Franz :0"]
[null,null,null,null,null,"ZLSG_Wormstedt_3"]
["Müller, Anja",null,1.857,"ZLSG_Wormstedt_3",null,"Müller, Anja :1,857"]
["Sachs, Michael",null,1.333,"ZLSG_Wormstedt_3",null,"Sachs, Michael :1,333"]
["Haase , Pascal",null,1.2629999999999999,"ZLSG_Wormstedt_3",null,"Haase , Pascal :1,263"]
["Richter, Andreas",null,"2,545 (3.L)","ZLSG_Wormstedt_3",null,"Richter, Andreas :2,545 (3.L"]
[null,null,null,null,null,"KSSV_Victoria_Weimar_2"]
["Schnabl, Maurice",null,"0,160 (1.L)","KSSV_Victoria_Weimar_2",null,"Schnabl, Maurice :0,160 (1.L"]
["Gerhardt, Uwe",null,2.6669999999999998,"KSSV_Victoria_Weimar_2",null,"Gerhardt, Uwe :2,667"]
["Putz, Andreas",null,2.3330000000000002,"KSSV_Victoria_Weimar_2",null,"Putz, Andreas :2,333"]
["Mager, Sascha",null,2.222,"KSSV_Victoria_Weimar_2",null,{"$f":"A160&B160&\" :\"&LEFT(C160,10)","v":"Mager, Sascha :2,222"}]
[" ",null,null,null,null,"TSV_1914_Berlstedt_4"]
[null,null,null,"TSV_1914_Berlstedt_4",null," :"]
[null,null,null,"TSV_1914_Berlstedt_4",null," :"]
[null,null,null,"TSV_1914_Berlstedt_4",null," :"]
[null,null,null,"TSV_1914_Berlstedt_4",null," :"]
[null,null,null,"TSV_1914_Berlstedt_4",null," :"]
[null,null,null,"TSV_1914_Berlstedt_4",null," :"]
[null,null,null,"TSV_1914_Berlstedt_4",null," :"]
[null,null,null,"TSV_1914_Berlstedt_4",null," :"]
[null,null,null,"TSV_1914_Berlstedt_4",null,{"$f":"A170&B170&\" :\"&LEFT(C170,10)","v":" :"}]
[null,null,null,"TSV_1914_Berlstedt_4",null,{"$f":"A171&B171&\" :\"&LEFT(C171,10)","v":" :"}]
[null,null,null,"TSV_1914_Berlstedt_4",null,{"$f":"A172&B172&\" :\"&LEFT(C172,10)","v":" :"}]
[null,null,null,"TSV_1914_Berlstedt_4",null,{"$f":"A173&B173&\" :\"&LEFT(C173,10)","v":" :"}]
[null,null,null,"TSV_1914_Berlstedt_4",null,{"$f":"A174&B174&\" :\"&LEFT(C174,10)","v":" :"}]
[null,null,0,"TSV_1914_Berlstedt_4",null," :0"]
[null,null,0,"TSV_1914_Berlstedt_4",null,{"$f":"A176&B176&\" :\"&LEFT(C176,10)","v":" :0"}]
["Ersatz 1",null,null,"TSV_1914_Berlstedt_4",null,"Ersatz 1 :"]
[]
[null,null,null,null,null,"SG_Rot._Tannroda_3"]
["Süß, Ronald",null,"3,630 (24/25)","SG_Rot._Tannroda_3",null,{"$f":"A180&B180&\" :\"&LEFT(C180,10)","v":"Süß, Ronald :3,630 (24/"}]
["Wedekind, Jens",null,2.75,"SG_Rot._Tannroda_3",null,"Wedekind, Jens :2,75"]
["Ritter, Tom",null,2.5710000000000002,"SG_Rot._Tannroda_3",null,"Ritter, Tom :2,571"]
["Schwager, Milo",null,0.88900000000000001,"SG_Rot._Tannroda_3",null,{"$f":"A183&B183&\" :\"&LEFT(C183,10)","v":"Schwager, Milo :0,889"}]
[null,null,null,null,null,"TSV_1914_Berlstedt_3"]
["Haupt, Simon",null,3.4289999999999998,"TSV_1914_Berlstedt_3",null,{"$f":"A185&B185&\" :\"&LEFT(C185,10)","v":"Haupt, Simon :3,429"}]
["Seidemann, Heiko",null,3.3330000000000002,"TSV_1914_Berlstedt_3",null,"Seidemann, Heiko :3,333"]
["Mendel, Jürgen",null,2.5710000000000002,"TSV_1914_Berlstedt_3",null,{"$f":"A187&B187&\" :\"&LEFT(C187,10)","v":"Mendel, Jürgen :2,571"}]
["Oswald, Jens-Uwe",null,2.4,"TSV_1914_Berlstedt_3",null,"Oswald, Jens-Uwe :2,4"]
["Strobach, Gina",null,"2,000 (22/23)","TSV_1914_Berlstedt_3",null,{"$f":"A189&B189&\" :\"&LEFT(C189,10)","v":"Strobach, Gina :2,000 (22/"}]
["Marth, Uwe",null,1.4550000000000001,"TSV_1914_Berlstedt_3",null,{"$f":"A190&B190&\" :\"&LEFT(C190,10)","v":"Marth, Uwe :1,455"}]
[null,null,null,null,null,"TTC_Rotation_Weimar_V3"]
["Heinje, Dirk",null,"1,917 (1.L24/25)","TTC_Rotation_Weimar_V3",null,{"$f":"A192&B192&\" :\"&LEFT(C192,10)","v":"Heinje, Dirk :1,917 (1.L"}]
["Steinkamp, Bernd",null,"0,545 (1.L24/25)","TTC_Rotation_Weimar_V3",null,{"$f":"A193&B193&\" :\"&LEFT(C193,10)","v":"Steinkamp, Bernd :0,545 (1.L"}]
["Mann, Johannes",null,3.238,"TTC_Rotation_Weimar_V3",null,"Mann, Johannes :3,238"]
["Ajaini, Ahmad",null,3.2,"TTC_Rotation_Weimar_V3",null,"Ajaini, Ahmad :3,2"]
["Koloskow, Alexander",null,2.6669999999999998,"TTC_Rotation_Weimar_V3",null,"Koloskow, Alexander :2,667"]
["Mann, Maria",null,1.6919999999999999,"TTC_Rotation_Weimar_V3",null,"Mann, Maria :1,692"]
["Löffler, Jörg",null,"1,391 (23/24)","TTC_Rotation_Weimar_V3",null,"Löffler, Jörg :1,391 (23/"]
["Zsoldos, Attila",null,0.70599999999999996,"TTC_Rotation_Weimar_V3",null,"Zsoldos, Attila :0,706"]
["Schachert, Hans Werner",null,"0,625 /24/25)","TTC_Rotation_Weimar_V3",null,"Schachert, Hans Werner :0,625 /24/"]
[null,null,null,null,null,"Medizin_Blankenhain_3"]
["Peter, Frank",null,3.1110000000000002,"KSSV_Victoria_Weimar_3",null,{"$f":"A202&B202&\" :\"&LEFT(C202,10)","v":"Peter, Frank :3,111"}]
["Sauer, Silvia",null,"3,000 (3.L22/23)","KSSV_Victoria_Weimar_3",null,{"$f":"A203&B203&\" :\"&LEFT(C203,10)","v":"Sauer, Silvia :3,000 (3.L"}]
["Sitz, Susanne",null,2.1819999999999999,"KSSV_Victoria_Weimar_3",null,"Sitz, Susanne :2,182"]
["Petermann, Marc",null,1.429,"KSSV_Victoria_Weimar_3",null,"Petermann, Marc :1,429"]
["Vogler, Ralph",null,1.143,"KSSV_Victoria_Weimar_3",null,"Vogler, Ralph :1,143"]
["Weber, Bernhard",null,1.0669999999999999,"KSSV_Victoria_Weimar_3",null,"Weber, Bernhard :1,067"]
["Röder, Kerstin",null,0,null,null,{"$f":"A208&B208&\" :\"&LEFT(C208,10)","v":"Röder, Kerstin :0"}]
["Schröpfer, Mike",null,0,null,null,{"$f":"A209&B209&\" :\"&LEFT(C209,10)","v":"Schröpfer, Mike :0"}]
["Bachmann, Veit",null,0,"KSSV_Victoria_Weimar_3",null,"Bachmann, Veit :0"]
["Homberg, Peter",null,0,"KSSV_Victoria_Weimar_3",null,"Homberg, Peter :0"]
[null,null,null,null,null,"TTC_Rotation_Weimar_V5"]
["Riese, Peter",null,"2,211 (2.L24/25)","TTC Rotation Weimar V5",null,{"$f":"A213&B213&\" :\"&LEFT(C213,10)","v":"Riese, Peter :2,211 (2.L"}]
["Berg, Julia",null,1.8460000000000001,"TTC Rotation Weimar V5",null,"Berg, Julia :1,846"]
["Engert, Mandy",null,1.714,"TTC Rotation Weimar V5",null,"Engert, Mandy :1,714"]
["Nakulakonda, Vangaresh",null,"1,255 (24/25)","TTC Rotation Weimar V5",null,"Nakulakonda, Vangaresh :1,255 (24/"]
["Zhang, Wanchang",null,"1,212 (24/25)","TTC Rotation Weimar V5",null,"Zhang, Wanchang :1,212 (24/"]
["Tartaglione, Fabiola",null,0,"TTC Rotation Weimar V5",null,{"$f":"A218&B218&\" :\"&LEFT(C218,10)","v":"Tartaglione, Fabiola :0"}]
["Kürbs, Dieter",null,0,"TTC Rotation Weimar V5",null,"Kürbs, Dieter :0"]
["Haase, Christian",null,0,"TTC Rotation Weimar V5",null,{"$f":"A220&B220&\" :\"&LEFT(C220,10)","v":"Haase, Christian :0"}]
["Klee, Otto",null,0,"TTC Rotation Weimar V5",null,{"$f":"A221&B221&\" :\"&LEFT(C221,10)","v":"Klee, Otto :0"}]
["Zhao, Yi",null,0,"TTC Rotation Weimar V5",null,{"$f":"A222&B222&\" :\"&LEFT(C222,10)","v":"Zhao, Yi :0"}]
[null,null,null,null,null,"Weimarer_SV_2"]
[null,null,null,"Weimarer SV 2",null,{"$f":"A224&B224&\" :\"&LEFT(C224,10)","v":" :"}]
[null,null,null,"Weimarer SV 2",null,{"$f":"A225&B225&\" :\"&LEFT(C225,10)","v":" :"}]
[null,null,null,"Weimarer SV 2",null," :"]
[null,null,null,"Weimarer SV 2",null," :"]
[null,null,null,"Weimarer SV 2",null," :"]
[null,null,null,"Weimarer SV 2",null," :"]
[null,null,null,"Weimarer SV 2",null," :"]
[null,null,null,"Weimarer SV 2",null," :"]
[null,null,null,"Weimarer SV 2",null," :"]
[null,null,null,"Weimarer SV 2",null," :"]
["Ersatz1",null,null,"Weimarer SV 2",null,"Ersatz1 :"]
[]
[]
[null,null,null,null,null,"ZLSG_Wormstedt_5"]
[null,null,null,"ZLSG_Wormstedt_5",null,{"$f":"A238&B238&\" :\"&LEFT(C238,10)","v":" :"}]
[null,null,null,"ZLSG_Wormstedt_5",null," :"]
[null,null,null,"ZLSG_Wormstedt_5",null," :"]
[null,null,null,"ZLSG_Wormstedt_5",null," :"]
[null,null,null,"ZLSG_Wormstedt_5",null," :"]
[null,null,null,"ZLSG_Wormstedt_5",null," :"]
[null,null,null,"ZLSG_Wormstedt_5",null," :"]
[null,null,null,"ZLSG_Wormstedt_5",null," :"]
[null,null,null,"ZLSG_Wormstedt_5",null," :"]
[null,null,null,"ZLSG_Wormstedt_5",null,{"$f":"A247&B247&\" :\"&LEFT(C247,10)","v":" :"}]
["Ersatz1",null,null,"ZLSG_Wormstedt_5",null,"Ersatz1 :"]
["Ersatz2",null,null,"ZLSG_Wormstedt_5",null,"Ersatz2 :"]
[null,null,null,null,null,"SG_Rot._Tannroda_4"]
["Wattenbach, Klaus",null,2.9329999999999998,"SG_Rot._Tannroda_4",null,{"$f":"A251&B251&\" :\"&LEFT(C251,10)","v":"Wattenbach, Klaus :2,933"}]
["Singer, Franziska",null,"1,867 (22/23)","SG_Rot._Tannroda_4",null,{"$f":"A252&B252&\" :\"&LEFT(C252,10)","v":"Singer, Franziska :1,867 (22/"}]
["Hildesheim, Tim",null,1.538,"SG_Rot._Tannroda_4",null,"Hildesheim, Tim :1,538"]
["Scharf, Helmut",null,"1,217 (24/25)","SG_Rot._Tannroda_4",null,"Scharf, Helmut :1,217 (24/"]
["Backhaus, Thomas",null,"1,000 (24/25)","SG_Rot._Tannroda_4",null,"Backhaus, Thomas :1,000 (24/"]
["Hunder , Frank",null,0.92300000000000004,"SG_Rot._Tannroda_4",null,"Hunder , Frank :0,923"]
["Großkunze, Kai",null,"0,750 (24/25)","SG_Rot._Tannroda_4",null,"Großkunze, Kai :0,750 (24/"]
["Schnemilich, Marcel",null,0.44400000000000001,"SG_Rot._Tannroda_4",null,"Schnemilich, Marcel :0,444"]
[null,null,null,null,null,"ZLSG_Wormstedt_4"]
["von der Gönna, Gordon",null,"1,333 (2.L2425)","ZLSG_Wormstedt_4",null,{"$f":"A260&B260&\" :\"&LEFT(C260,10)","v":"von der Gönna, Gordon :1,333 (2.L"}]
["Lapp, Jens",null,"3,500 (2425)","ZLSG_Wormstedt_4",null,{"$f":"A261&B261&\" :\"&LEFT(C261,10)","v":"Lapp, Jens :3,500 (242"}]
["Dr. Wolter, Wolfgang",null,"3,238 (2425)","ZLSG_Wormstedt_4",null,"Dr. Wolter, Wolfgang :3,238 (242"]
["Dill, Olaf",null,2.4,"ZLSG_Wormstedt_4",null,"Dill, Olaf :2,4"]
["Oertel, Lutz",null,1.778,"ZLSG_Wormstedt_4",null,"Oertel, Lutz :1,778"]
["Veit , Silvio",null,"1,778 (2425)","ZLSG_Wormstedt_4",null,"Veit , Silvio :1,778 (242"]
["Kula, Stephanie",null,"1,440 (2425)","ZLSG_Wormstedt_4",null,"Kula, Stephanie :1,440 (242"]
["Hartman, Marcel ",null,"0,727 (2425)","ZLSG_Wormstedt_4",null,{"$f":"A267&B267&\" :\"&LEFT(C267,10)","v":"Hartman, Marcel  :0,727 (242"}]
["Feid, Klaus-Dieter",null,"0,444 (2425)","ZLSG_Wormstedt_4",null,"Feid, Klaus-Dieter :0,444 (242"]
["Ilmer, Steve",null,0,"ZLSG_Wormstedt_4",null,"Ilmer, Steve :0"]
["Gräfe, Ronny",null,0,"ZLSG_Wormstedt_4",null,"Gräfe, Ronny :0"]
["Welke, Shawn",null,0,"ZLSG_Wormstedt_4",null,{"$f":"A271&B271&\" :\"&LEFT(C271,10)","v":"Welke, Shawn :0"}]
[]
[null,null,null,null,null,"SG_Mellingen_Taubach"]
[null,null,null,"BSV_04_Bad_Berka_F5",null,{"$f":"A274&B274&\" :\"&LEFT(C274,10)","v":" :"}]
[null,null,null,"BSV_04_Bad_Berka_F5",null," :"]
[null,null,null,"BSV_04_Bad_Berka_F5",null," :"]
[null,null,null,"BSV_04_Bad_Berka_F5",null," :"]
[null,null,null,"BSV_04_Bad_Berka_F5",null," :"]
[null,null,null,"BSV_04_Bad_Berka_F5",null," :"]
[null,null,null,"BSV_04_Bad_Berka_F5",null," :"]
[null,null,null,"BSV_04_Bad_Berka_F5",null," :"]
[null,null,null,"BSV_04_Bad_Berka_F5",null," :"]
[null,null,null,"BSV_04_Bad_Berka_F5",null," :"]
[null,null,null,"BSV_04_Bad_Berka_F5",null," :"]
["Ersatz1",null,null,"BSV_04_Bad_Berka_F5",null,"Ersatz1 :"]
["Ersatz2",null,null,"BSV_04_Bad_Berka_F5",null,"Ersatz2 :"]
[null,null,null,null,null," :"]
[null,null,null,null,null,"TSG_Apolda_2"]
["Vollmar, Daniel",null,"3,459 (22/23)","TSG_Apolda_2",null,{"$f":"A289&\",\"&B289&\" :\"&LEFT(C289,5)","v":"Vollmar, Daniel, :3,459"}]
["Müller, Tommy",null,"3,444 (24/25)","TSG_Apolda_2",null,"Müller, Tommy, :3,444"]
["Frömchen, Andreas",null,3.4289999999999998,"TSG_Apolda_2",null,"Frömchen, Andreas, :3,429"]
["Minner, Jan",null,3.1110000000000002,"TSG_Apolda_2",null,"Minner, Jan, :3,111"]
["Lahr, Johannes",null,2.5,"TSG_Apolda_2",null,"Lahr, Johannes, :2,5"]
["Herrmann, Volker",null,"2,400 (22/23)","TSG_Apolda_2",null,"Herrmann, Volker, :2,400"]
["Beeg, Bettina",null,"1,625 (23/24)","TSG_Apolda_2",null,"Beeg, Bettina, :1,625"]
["Trepanowski, Mario",null,"1,556 (22/23)","TSG_Apolda_2",null,"Trepanowski, Mario, :1,556"]
["Bohner, Stefan",null,"1,077 (24/25)","TSG_Apolda_2",null,{"$f":"A297&\",\"&B297&\" :\"&LEFT(C297,5)","v":"Bohner, Stefan, :1,077"}]
["Baum, Nicole",null,0,"TSG_Apolda_2",null,{"$f":"A298&\",\"&B298&\" :\"&LEFT(C298,5)","v":"Baum, Nicole, :0"}]
["Kaminski, Ute",null,0,"TSG_Apolda_2",null,{"$f":"A299&\",\"&B299&\" :\"&LEFT(C299,5)","v":"Kaminski, Ute, :0"}]
[]
[null,null,null,null,null,"Musashi_Weimar"]
["Tschernatsch, Uwe",null,2.5880000000000001,"Musashi_Weimar",null,{"$f":"A302&\",\"&B302&\" :\"&LEFT(C302,5)","v":"Tschernatsch, Uwe, :2,588"}]
["Dahm, Dirk-Uwe",null,2.5259999999999998,"Musashi_Weimar",null,"Dahm, Dirk-Uwe, :2,526"]
["Gräning, Peter",null,1.867,"Musashi_Weimar",null,"Gräning, Peter, :1,867"]
["Schmidt, Frank",null,1.143,"Musashi_Weimar",null,"Schmidt, Frank, :1,143"]
["Dahm, William-Myamoto",null,0,"Musashi_Weimar",null,"Dahm, William-Myamoto, :0"]
["Dahm, Aurelius-Morihei",null,0,"Musashi_Weimar",null,"Dahm, Aurelius-Morihei, :0"]
["Schulz, Jonas-Franz",null,0,"Musashi_Weimar",null,{"$f":"A308&\",\"&B308&\" :\"&LEFT(C308,5)","v":"Schulz, Jonas-Franz, :0"}]
["Greif, Florian",null,0,"Musashi_Weimar",null,{"$f":"A309&\",\"&B309&\" :\"&LEFT(C309,5)","v":"Greif, Florian, :0"}]
["Keading, Bodo",null,0,"Musashi_Weimar",null,{"$f":"A310&\",\"&B310&\" :\"&LEFT(C310,5)","v":"Keading, Bodo, :0"}]
[null,null,null,null,null,", :"]
[]
[null,null,null,null,null,"Medizin_Blankenhain_3"]
[null,null,null,"Medizin_Blankenhain_3",null,{"$f":"A314&\",\"&B314&\" :\"&LEFT(C314,5)","v":", :"}]
[null,null,null,"Medizin_Blankenhain_3",null,", :"]
[null,null,null,"Medizin_Blankenhain_3",null,", :"]
[null,null,null,"Medizin_Blankenhain_3",null,", :"]
[null,null,null,"Medizin_Blankenhain_3",null,", :"]
[null,null,null,"Medizin_Blankenhain_3",null,", :"]
["Ersatz1",null,null,"Medizin_Blankenhain_3",null,{"$f":"A320&\",\"&B320&\" :\"&LEFT(C320,5)","v":"Ersatz1, :"}]
["Ersatz2",null,null,"Medizin_Blankenhain_3",null,"Ersatz2, :"]
[null,null,null,null,null,", :"]
[]
["Peter, Frank",null,3.1110000000000002,"KSSV_Victoria_Weimar_3",null,"Peter, Frank, :3,111"]
["Sauer, Silvia",null,"3,000 (3.L22/23)","KSSV_Victoria_Weimar_3",null,"Sauer, Silvia, :3,000"]
["Sitz, Susanne",null,2.1819999999999999,"KSSV_Victoria_Weimar_3",null,"Sitz, Susanne, :2,182"]
["Petermann, Marc",null,1.429,"KSSV_Victoria_Weimar_3",null,"Petermann, Marc, :1,429"]
["Vogler, Ralph",null,1.143,"KSSV_Victoria_Weimar_3",null,"Vogler, Ralph, :1,143"]
["Weber, Bernhard",null,1.0669999999999999,"KSSV_Victoria_Weimar_3",null,"Weber, Bernhard, :1,067"]
["Röder, Kerstin",null,0,"KSSV_Victoria_Weimar_3",null,"Röder, Kerstin, :0"]
["Schröpfer, Mike",null,0,"KSSV_Victoria_Weimar_3",null,"Schröpfer, Mike, :0"]
["Bachmann, Veit",null,0,"KSSV_Victoria_Weimar_3"]
["Homberg, Peter",null,0,"KSSV_Victoria_Weimar_3",null,"Homberg, Peter, :0"]

{"sheet":"Alle Spieler","index":6,"n_rows":218,"n_cols":1,"rows_kept":218,"cut":false,"hidden":true,"merged":[]}
["Ajaini, Ahmad :3,2"]
["Albert, Dieter :1,5"]
["Arenswald, Ralf :1,29"]
["Bachmann, Veit :0"]
["Backhaus, Thomas :1,000 (24/"]
["Baldorj, Batsurem :3,81"]
["Barth, Thomas :1,333"]
["Baum, Nicole, :0"]
["Beeg, Bettina, :1,625"]
["Benkenstein, Andreas :1,481"]
["Berg, Julia :1,846"]
["Berger, Gerrit :2,72"]
["Berndt, Manfred :1,867 (23/"]
["Blume, Thomas :1,571"]
["Bohner, Stefan, :1,077"]
["Both, Johannes :0"]
["Brückner, Jürgen :2,345"]
["Brückner, Oliver :1,684"]
["Brückner, Steffen :1,143"]
["Burschberg, Swen :0,923"]
["Christ, Holger :1,185"]
["Dahm, Aurelius-Morihei, :0"]
["Dahm, Dirk-Uwe, :2,526"]
["Dahm, William-Myamoto, :0"]
["Danzer, Stefan :1,913"]
["Dill, Olaf :2,4"]
["Döbert, Daniel :0"]
["Dobschal, Jürgen :1,5"]
["Dr. Wolter, Wolfgang :3,238 (242"]
["Eckardt, Hans-Peter :0,824 (1.L"]
["Engert, Mandy :1,714"]
["Erler, Nick :3,226"]
["Eschholz, Martin :0"]
["Fehre, Jürgen :2,72"]
["Feid, Klaus-Dieter :0,444 (242"]
["Fischer, Thomas :1,000 (24/"]
["Freixa, Victor :4"]
["Frömchen, Andreas, :3,429"]
["Gast, Friedhelm :1,714"]
["Geburtig, Gerd :2,333"]
["Gehrhardt, Christoph :1,857"]
["Geißler, Robert :3,586"]
["Gelmroth, Tim :0,000 (J)"]
["Gerhardt, Uwe :2,667"]
["Golke, Rüdiger :1,481 (24/"]
["Götze, Martin :0,8"]
["Graf, Katrin :0"]
["Gräfe, Ronny :0"]
["Gräning, Peter, :1,867"]
["Grau, Detlef :2,364"]
["Grau, Diethard :3,710 (22/"]
["Grau, Kevin :2,621"]
["Grau, Mathias :0,909"]
["Greif, Florian, :0"]
["Große, Andreas :3,355"]
["Großkunze, Kai :0,750 (24/"]
["Haase , Pascal :1,263"]
["Haase, Christian :0"]
["Hänsgen, Marcel :1,241"]
["Hartman, Marcel  :0,727 (242"]
["Hasenauer, Christof :3,660 (22/"]
["Haupt, Simon :3,429"]
["Hawlicki, Martin :2,933"]
["Hegenbarth, Moritz :3,034"]
["Heinje, Dirk :1,917 (24/"]
["Herold, Michael :0,833"]
["Herrmann, Volker, :2,400"]
["Hildesheim, Tim :1,538"]
["Hochstein, Andreas :1,217"]
["Hoffmann, Franz-Alois :0,000 (J)"]
["Homberg, Peter, :0"]
["Horak, Ron :0,6"]
["Hubert, Michael :0,800 (22/"]
["Hunder , Frank :0,923"]
["Huskobla, Maik :0,25"]
["Hüttl, Harald :2,353"]
["Ilmer, Steve :0"]
["Jaranowski, Klaus :1,091"]
["Johnson, Trevor :1,935"]
["Junge, Michael :1,263"]
["Junghanß, Mario :1,046 (3.L"]
["Kallenbach, Rainer :2,182 (1.L"]
["Kaminski, Ute, :0"]
["Karst, Daniel :2,143"]
["Kasch, Benjamin :0"]
["Kasch, Thomas :0"]
["Keading, Bodo, :0"]
["Kiesel, Jakob :2,703 (24/"]
["Kirchhoff, Michael :1,733"]
["Klee, Otto :0"]
["Klos, Heiko :2,2"]
["Knobloch, Dirk :3,143"]
["Knobloch, Michael :2,118"]
["Kohl, Matthias :3,172"]
["Köhler, Florian :0,667"]
["Köhler, Lothar :0,857"]
["Köhler, Martin :3,111"]
["Kohlstedt, Martin :3,111"]
["Koloskow, Alexander :2,667"]
["König, Alexa :0,615"]
["König, Thomas  :1,818"]
["Krug, Norman :3"]
["Krummrich, Felix :0"]
["Kube, Martin :2,759"]
["Kula, Stephanie :1,440 (242"]
["Kunze-Mroz, Stephan :0,774"]
["Kürbs, Dieter :0"]
["Lahr, Johannes, :2,5"]
["Lapp, Jens :3,500 (242"]
["Lau, Ludmilla :3,143"]
["Laue, Silas :0,000 (J)"]
["Liebig, Ringo :1,778"]
["Löffler, Jörg :1,391 (23/"]
["Loos, Arne :2,500 (3.L"]
["Lott, Martin :2,75"]
["Luu, Dung :0"]
["Lytovshenko, Eugen :2,8"]
["Mager, Sascha :2,222"]
["Mann, Johannes :3,238"]
["Mann, Maria :1,692"]
["Marth, Uwe :1,455"]
["Meinhof, Franz :0"]
["Mendel, Jürgen :2,571"]
["Mendler, Uwe :2,4"]
["Michaelis, Jörg :2,452"]
["Michel, Horst :3,467 (3.L"]
["Minner, Jan, :3,111"]
["Müller, Anja :1,857"]
["Müller, Tommy, :3,444"]
["Nakulakonda, Vangaresh :1,255 (24/"]
["Nauber, Nils :2,364 (3.L"]
["Niebling, Holger :0,560 (24/"]
["Niebling, Saskia :3,459 (24/"]
["Nitsche, Frederik :4"]
["Nöckel, Andreas :3,579"]
["Oertel, Lutz :1,778"]
["Oswald, Jens-Uwe :2,4"]
["Pappenberg, Jan :1,788"]
["Peter, Frank, :3,111"]
["Petermann, Marc, :1,429"]
["Pfaffe,  Wolfgang :1,714"]
["Pfundheller, Felix :1,167"]
["Pietsch, Sebastian :2,261"]
["Plomitzer, Manfred :1,412 (24/"]
["Plomitzer, Thomas :3,4"]
["Prokopp, Sebastian :1,455"]
["Putz, Andreas :2,333"]
["Quett, Noah :2,815"]
["Raack, Andreas :1,143"]
["Reule , Andi :2,182"]
["Richter, Andreas :2,545 (3.L"]
["Riese, Peter :2,211 (2.L"]
["Riese, Sven :2,128 (24/"]
["Ritter, Tom :2,571"]
["Röder, Kerstin :0"]
["Röder, Kerstin, :0"]
["Römer, Mike :0,766 (3.L"]
["Röse, Peter :3,091"]
["Sachs, Michael :1,333"]
["Sauer, Silvia :3,000 (3.L"]
["Sauer, Silvia, :3,000"]
["Schachert, Hans Werner :0,625 /24/"]
["Scharf, Helmut :1,217 (24/"]
["Schiek, Stefan :4"]
["Schmidt, Frank, :1,143"]
["Schmidt-Apel, Heiko :3,2"]
["Schnabl, Maurice :0,160 (1.L"]
["Schnemilich, Marcel :0,444"]
["Scholz, Ronny :2,8"]
["Schöne, Georg :3,077"]
["Schramke, Michael :0,857"]
["Schröder, Berthold :0,857"]
["Schröpfer, Mike :0"]
["Schröpfer, Mike, :0"]
["Schröter, Jörg :2,769"]
["Schulz, Astrid :0,667"]
["Schulz, Jonas-Franz, :0"]
["Schulze-Sandow, Holger :0"]
["Schwager, Matthias :1,391"]
["Schwager, Milo :0,889"]
["Seel, Richard :1,6"]
["Seidemann, Heiko :3,333"]
["Seifarth Siegfried :3,259"]
["Singer, Franziska :1,867 (22/"]
["Singer, Nicklas :3,04"]
["Sitz, Susanne, :2,182"]
["Sorge, Lucas :3,368 (3.L"]
["Steinkamp, Bernd :0,545 (1.L"]
["Strobach, Gina :2,000 (22/"]
["Süß, Ronald :3,630 (24/"]
["Tartaglione, Fabiola :0"]
["Taubert, Anja :3,355"]
["Thierfelder, Philipp :3,127 (24/"]
["Thümmel, Maik :0"]
["Trepanowski, Mario, :1,556"]
["Tschernatsch, Uwe, :2,588"]
["van Elsen, Laurell :1,29"]
["Veit , Silvio :1,778 (242"]
["Vogler, Ralph :1,143"]
["Vogler, Ralph, :1,143"]
["Vollmar, Daniel, :3,459"]
["von der Gönna, Gordon :1,333 (2.L"]
["Wattenbach, Klaus :2,933"]
["Weber, Bernhard :1,067"]
["Weber, Bernhard, :1,067"]
["Wedekind, Frederick :3,086"]
["Wedekind, Jens :2,75"]
["Weisig, Stefan :2,933"]
["Welke, Shawn :0"]
["Wenke, Wolfram :1,76"]
["Wiede, Luise :0,956"]
["Wobser, Jürgen :4"]
["Wollmann, Dirk :1,565"]
["Worms, Udo :1.KL"]
["Würzburg, Martin :2,435 (24/"]
["Zhang, Wanchang :1,212 (24/"]
["Zhao, Yi :0"]
["Zsoldos, Attila :0,706"]

{"sheet":"START","index":7,"n_rows":35,"n_cols":62,"rows_kept":35,"cut":false,"hidden":true,"merged":[[0,0,1,24],[2,1,2,5],[2,8,2,15],[2,20,2,24],[7,1,7,4],[7,8,7,13],[7,18,7,24],[3,1,3,5],[3,8,3,15],[3,16,3,24],[4,1,4,5],[4,16,4,17],[4,18,4,24],[5,1,5,4],[5,8,5,13],[5,16,5,17],[5,18,5,24],[6,1,6,4],[6,8,6,13],[6,18,6,24],[8,1,8,4],[8,8,8,13],[8,16,8,17],[8,18,8,24],[9,1,9,4],[9,8,9,13],[9,16,9,17],[9,18,9,24],[10,1,10,2],[10,3,10,4],[10,9,10,13],[10,18,10,24],[11,1,11,2],[11,3,11,4],[11,9,11,13],[11,18,11,24],[12,1,12,4],[12,8,12,13],[12,18,12,24],[12,16,12,17],[14,3,14,5],[14,7,14,8],[13,3,13,5],[13,7,13,8],[13,9,13,10],[13,17,13,18],[13,19,13,20],[13,21,13,22],[13,23,13,24],[13,11,13,12],[13,13,13,14],[13,15,13,16],[15,3,15,5],[15,7,15,8],[16,3,16,5],[16,7,16,8],[17,3,17,5],[17,7,17,8],[18,3,18,5],[18,7,18,8],[19,3,19,5],[19,7,19,8],[20,3,20,5],[20,7,20,8],[21,3,21,5],[21,7,21,8],[22,3,22,5],[22,7,22,8],[23,3,23,5],[23,7,23,8],[24,3,24,5],[24,7,24,8],[25,3,25,5],[25,7,25,8],[26,3,26,5],[26,7,26,8],[27,3,27,5],[27,7,27,8],[28,3,28,5],[28,7,28,8],[29,3,29,5],[29,7,29,8],[32,15,32,17],[34,0,36,1],[34,2,36,24],[30,3,30,5],[30,7,30,8],[31,3,31,5],[31,7,31,8],[32,3,32,5],[32,7,32,9],[33,4,33,6],[33,0,33,3]]}
["Spielberichtsbogen der Tischtennis Vereinsliga > Region Weimar<",null,null,null,null,null,null,null,null,null,null,null,null,null,null,null,null,null,null,null,null,null,null,null,null,null,null,null,null,null,null,null,null,null,null,null,null,null,null,null,null,null,null,null,null,null,null,null,null,null,null,"x",null,null,null,null,null,null,null,null,{"$f":"IFERROR(IF(ROW()-ROW($J$1)+1<=COUNTA(INDIRECT($B$6)),INDEX(INDIRECT($B$6),ROW()-ROW($J$1)+1),IF(ROW()-ROW($J$1)+1-COUNTA(INDIRECT($B$6))<=COUNTA($S$6:$S$8),INDEX($S$6:$S$8,ROW()-ROW($J$1)+1-COUNTA(INDIRECT($B$6))),\"\")),\"\")","v":""},{"$f":"IFERROR(IF(ROW()-ROW($J$1)+1<=COUNTA(INDIRECT($I$6)),INDEX(INDIRECT($I$6),ROW()-ROW($J$1)+1),IF(ROW()-ROW($J$1)+1-COUNTA(INDIRECT($I$6))<=COUNTA($S$10:$S$12),INDEX($S$10:$S$12,ROW()-ROW($J$1)+1-COUNTA(INDIRECT($I$6))),\"\")),\"\")","v":""}]
[null,null,null,null,null,null,null,null,null,null,null,null,null,null,null,null,null,null,null,null,null,null,null,null,null,null,null,null,null,null,null,null,null,null,null,null,null,null,null,null,null,null,null,null,null,null,null,null,null,null,null,null,null,null,null,null,null,null,null,null,"",{"$f":"IFERROR(IF(ROW()-ROW($J$1)+1<=COUNTA(INDIRECT($I$6)),INDEX(INDIRECT($I$6),ROW()-ROW($J$1)+1),IF(ROW()-ROW($J$1)+1-COUNTA(INDIRECT($I$6))<=COUNTA($S$10:$S$12),INDEX($S$10:$S$12,ROW()-ROW($J$1)+1-COUNTA(INDIRECT($I$6))),\"\")),\"\")","v":""}]
["x","Meisterschaftsspiel",null,null,null,null,null,"Liga:",null,null,null,null,null,null,null,null,"Spielnummer:",null,null,null,null,null,null,null,null,null,null,null,null,null,null,null,null,null,null,null,null,null,null,null,null,null,null,null,null,null,null,null,null,null,null,null,null,null,null,null,null,null,null,null,"",{"$f":"IFERROR(IF(ROW()-ROW($J$1)+1<=COUNTA(INDIRECT($I$6)),INDEX(INDIRECT($I$6),ROW()-ROW($J$1)+1),IF(ROW()-ROW($J$1)+1-COUNTA(INDIRECT($I$6))<=COUNTA($S$10:$S$12),INDEX($S$10:$S$12,ROW()-ROW($J$1)+1-COUNTA(INDIRECT($I$6))),\"\")),\"\")","v":""}]
[null,"Pokalspiel",null,null,null,null,null,"Ort:",null,null,null,null,null,null,null,null,"Ersatzspieler:",null,null,null,null,null,null,null,null,null,null,null,null,null,null,null,null,null,null,null,null,null,null,null,null,null,null,null,null,null,null,null,null,null,null,null,null,null,null,null,null,null,null,null,"",{"$f":"IFERROR(IF(ROW()-ROW($J$1)+1<=COUNTA(INDIRECT($I$6)),INDEX(INDIRECT($I$6),ROW()-ROW($J$1)+1),IF(ROW()-ROW($J$1)+1-COUNTA(INDIRECT($I$6))<=COUNTA($S$10:$S$12),INDEX($S$10:$S$12,ROW()-ROW($J$1)+1-COUNTA(INDIRECT($I$6))),\"\")),\"\")","v":""}]
[null,"Freundschaftsspiel",null,null,null,null,null,"Datum:",null,null,null,null,null,null,null,null,"Heim",null,{"$f":"B6","v":0},null,null,null,null,null,null,null,null,null,null,null,null,null,null,null,null,null,null,null,null,null,null,null,null,null,null,null,null,null,null,null,null,null,null,null,null,null,null,null,null,null,"",""]
["Heim",null,null,null,null,"S","N","Gast",null,null,null,null,null,null,"S","N","Ersatz1:",null,null,null,null,null,null,null,null,null,null,null,null,null,null,null,null,null,null,null,null,14,null,null,null,null,null,null,null,null,null,null,null,null,null,null,null,null,null,null,null,null,null,null,"",""]
[1,null,null,null,null,{"$f":"COUNTIFS(D$17:D$32,B7,V$17:V$32,\"1\")","v":0},{"$f":"COUNTIFS(D$17:D$32,B7,V$17:V$32,\"0\")","v":0},1,null,null,null,null,null,null,{"$f":"COUNTIFS(H$17:H$32,I7,W$17:W$32,\"1\")","v":0},{"$f":"COUNTIFS(H$17:H$32,I7,W$17:W$32,\"0\")","v":0},"Ersatz2:",null,null,null,null,null,null,null,null,null,null,null,null,null,null,null,null,null,null,null,null,13,null,null,null,null,null,null,null,null,null,null,null,null,null,null,null,null,null,null,null,null,null,null,"",""]
[2,null,null,null,null,{"$f":"COUNTIFS(D$17:D$32,B8,V$17:V$32,\"1\")","v":0},{"$f":"COUNTIFS(D$17:D$32,B8,V$17:V$32,\"0\")","v":0},2,null,null,null,null,null,null,{"$f":"COUNTIFS(H$17:H$32,I8,W$17:W$32,\"1\")","v":0},{"$f":"COUNTIFS(H$17:H$32,I8,W$17:W$32,\"0\")","v":0},"Ersatz3:",null,null,null,null,null,null,null,null,null,null,null,null,null,null,null,null,null,null,null,null,12,null,null,null,null,null,null,null,null,null,null,null,null,null,null,null,null,null,null,null,null,null,null,"",""]
[3,null,null,null,null,{"$f":"COUNTIFS(D$17:D$32,B9,V$17:V$32,\"1\")","v":0},{"$f":"COUNTIFS(D$17:D$32,B9,V$17:V$32,\"0\")","v":0},3,null,null,null,null,null,null,{"$f":"COUNTIFS(H$17:H$32,I9,W$17:W$32,\"1\")","v":0},{"$f":"COUNTIFS(H$17:H$32,I9,W$17:W$32,\"0\")","v":0},"Gast",null,{"$f":"I6","v":0},null,null,null,null,null,null,null,null,null,null,null,null,null,null,null,null,null,null,11,null,null,null,null,null,null,null,null,null,null,null,null,null,null,null,null,null,null,null,null,null,null,"",""]
[4,null,null,null,null,{"$f":"COUNTIFS(D$17:D$32,B10,V$17:V$32,\"1\")","v":0},{"$f":"COUNTIFS(D$17:D$32,B10,V$17:V$32,\"0\")","v":0},4,null,null,null,null,null,null,{"$f":"COUNTIFS(H$17:H$32,I10,W$17:W$32,\"1\")","v":0},{"$f":"COUNTIFS(H$17:H$32,I10,W$17:W$32,\"0\")","v":0},"Ersatz1:",null,null,null,null,null,null,null,null,null,null,null,null,null,null,null,null,null,null,null,null,10,null,null,null,null,null,null,null,null,null,null,null,null,null,null,null,null,null,null,null,null,null,null,"",""]
["D1",null,null,null,null,{"$f":"COUNTIFS(D$15:D$16,B11&\"/\"&D11,V$15:V$16,\"1\")","v":0},{"$f":"COUNTIFS(D$15:D$16,B11&\"/\"&D11,V$15:V$16,\"0\")","v":0},"D1",null,null,null,null,null,null,{"$f":"COUNTIFS(H$15:H$16,I11&\"/\"&J11,W$15:W$16,\"1\")","v":0},{"$f":"COUNTIFS(H$15:H$16,I11&\"/\"&J11,W$15:W$16,\"0\")","v":0},"Ersatz2:",null,null,null,null,null,null,null,null,null,null,null,null,null,null,null,null,null,null,null,null,9,null,null,null,null,null,null,null,null,null,null,null,null,null,null,null,null,null,null,null,null,null,null,"",""]
["D2",null,null,null,null,{"$f":"COUNTIFS(D$15:D$16,B12&\"/\"&D12,V$15:V$16,\"1\")","v":0},{"$f":"COUNTIFS(D$15:D$16,B12&\"/\"&D12,V$15:V$16,\"0\")","v":0},"D2",null,null,null,null,null,null,{"$f":"COUNTIFS(H$15:H$16,I12&\"/\"&J12,W$15:W$16,\"1\")","v":0},{"$f":"COUNTIFS(H$15:H$16,I12&\"/\"&J12,W$15:W$16,\"0\")","v":0},"Ersatz3:",null,null,null,null,null,null,null,null,null,null,null,null,null,null,null,null,null,null,null,null,8,null,null,null,null,null,null,null,null,null,null,null,null,null,null,null,null,null,null,null,null,null,null,"",""]
["Sen2",null,null,null,null,null,null,"Sen2",null,null,null,null,null,null,null,null,"Senior+",null,"Kein Seniorwechsel",null,null,null,null,null,null,null,null,null,null,null,null,null,null,null,null,null,null,7,null,null,null,null,null,null,null,null,null,null,null,null,null,null,null,null,null,null,null,null,null,null,"",""]
["Spiel","Pokal","Punkt-spiel",{"$f":"A6","v":"Heim"},null,null,null,{"$f":"H6","v":"Gast"},null,"1. Satz",null,"2. Satz",null,"3. Satz",null,"4. Satz",null,"5.Satz",null,"Sätze Gesamt",null,"Punkte Gesamt",null,"End stand",null,null,null,null,null,null,null,null,null,null,null,null,null,6,null,null,null,null,null,null,null,null,null,null,null,null,null,null,null,null,null,null,null,null,null,null,"",""]
["1.","1     2","D1:D1",{"$f":"IF($A$3=\"x\",CONCATENATE(B11)&\"/\"&CONCATENATE(D11),CONCATENATE(B7))","v":"/"},null,null,null,{"$f":"IF($A$3=\"x\",CONCATENATE(I11)&\"/\"&CONCATENATE(J11),CONCATENATE(I8))","v":"/"},null,null,null,null,null,null,null,null,null,null,null,{"$f":"IF(J15<>\"\",IF(J15>K15,\"1\", \"0\") +IF(L15>M15,\"1\", \"0\")+IF(N15>O15,\"1\", \"0\")+IF(P15>Q15,\"1\", \"0\")+IF(R15>S15,\"1\", \"0\"),\"\")","v":""},{"$f":"IF(J15<>\"\",IF(J15<K15,\"1\", \"0\") +IF(L15<M15,\"1\", \"0\")+IF(N15<O15,\"1\", \"0\")+IF(P15<Q15,\"1\", \"0\")+IF(R15<S15,\"1\", \"0\"),\"\")","v":""},{"$f":"IF(J15=\"\",\"\",IF(J15<>\"\",IF(T15=3,1,0),))","v":""},{"$f":"IF(J15=\"\",\"\",IF(J15<>\"\",IF(U15=3,1,0),))","v":""},{"$f":"IF(J15<>\"\",V15,\"\")","v":""},{"$f":"IF(J15<>\"\",W15,\"\")","v":""},null,null,null,null,null,null,null,null,null,null,null,null,5,null,null,null,null,null,null,null,null,null,null,null,null,null,null,null,null,null,null,null,null,null,null,"",""]
["2.","2     1","D2:D2",{"$f":"IF($A$3=\"x\",CONCATENATE(B12)&\"/\"&CONCATENATE(D12),CONCATENATE(B8))","v":"/"},null,null,null,{"$f":"IF($A$3=\"x\",CONCATENATE(I12)&\"/\"&CONCATENATE(J12),CONCATENATE(I7))","v":"/"},null,null,null,null,null,null,null,null,null,null,null,{"$f":"IF(J16<>\"\",IF(J16>K16,\"1\", \"0\") +IF(L16>M16,\"1\", \"0\")+IF(N16>O16,\"1\", \"0\")+IF(P16>Q16,\"1\", \"0\")+IF(R16>S16,\"1\", \"0\"),\"\")","v":""},{"$f":"IF(J16<>\"\",IF(J16<K16,\"1\", \"0\") +IF(L16<M16,\"1\", \"0\")+IF(N16<O16,\"1\", \"0\")+IF(P16<Q16,\"1\", \"0\")+IF(R16<S16,\"1\", \"0\"),\"\")","v":""},{"$f":"IF(J16=\"\",\"\",IF(J16<>\"\",IF(T16=3,1,0),))","v":""},{"$f":"IF(J16=\"\",\"\",IF(J16<>\"\",IF(U16=3,1,0),))","v":""},{"$f":"IFERROR(V16+X15,\"\")","v":""},{"$f":"IFERROR(W16+Y15,\"\")","v":""},null,null,null,null,null,null,null,null,null,null,null,null,4,null,null,null,null,null,null,null,null,null,null,null,null,null,null,null,null,null,null,null,null,null,null,"",""]
["3.","D1   D1","1     2",{"$f":"IF($A$3=\"x\",CONCATENATE(B7),CONCATENATE(B11)&\"/\"&CONCATENATE(D11))","v":""},null,null,null,{"$f":"IF($A$3=\"x\",CONCATENATE(I8),CONCATENATE(I11)&\"/\"&CONCATENATE(J11))","v":""},null,null,null,null,null,null,null,null,null,null,null,"","","","",{"$f":"IFERROR(V17+X16,\"\")","v":""},"",null,null,null,null,null,null,null,null,null,null,null,null,3,null,null,null,null,null,null,null,null,null,null,null,null,null,null,null,null,null,null,null,null,null,null,"",""]
["4.","1     1","2     1",{"$f":"IF($A$3=\"x\",CONCATENATE(B8),CONCATENATE(B8))","v":""},null,null,null,{"$f":"IF($A$3=\"x\",CONCATENATE(I7),CONCATENATE(I7))","v":""},null,null,null,null,null,null,null,null,null,null,null,"","","","","","",null,null,null,null,null,null,null,null,null,null,null,null,2,null,null,null,null,null,null,null,null,null,null,null,null,null,null,null,null,null,null,null,null,null,null,"",""]
["5.","2     2","3     4",{"$f":"IF($A$3=\"x\",CONCATENATE(B9),CONCATENATE(B8))","v":""},null,null,null,{"$f":"IF($A$3=\"x\",CONCATENATE(I10),CONCATENATE(I8))","v":""},null,null,null,null,null,null,null,null,null,null,null,"","","","","","",null,null,null,null,null,null,null,null,null,null,null,null,1,null,null,null,null,null,null,null,null,null,null,null,null,null,null,null,null,null,null,null,null,null,null,"",""]
["6.",null,"4     3",{"$f":"IF($A$3=\"x\",CONCATENATE(B10),\"\")","v":""},null,null,null,{"$f":"IF($A$3=\"x\",CONCATENATE(I9),\"\")","v":""},null,null,null,null,null,null,null,null,null,null,null,"","","","","","",null,null,null,null,null,null,null,null,null,null,null,null,0,null,null,null,null,null,null,null,null,null,null,null,null,null,null,null,null,null,null,null,null,null,null,"",""]
["7.",null,"1     1",{"$f":"IF($A$3=\"x\",CONCATENATE(B7),\"\")","v":""},null,null,null,{"$f":"IF($A$3=\"x\",CONCATENATE(I7),\"\")","v":""},null,null,null,null,null,null,null,null,null,null,null,"","","","","","",null,null,null,null,null,null,null,null,null,null,null,null,null,null,null,null,null,null,null,null,null,null,null,null,null,null,null,null,null,null,null,null,null,null,null,"",""]
["8.",null,"2     2",{"$f":"IF($A$3=\"x\",CONCATENATE(B8),\"\")","v":""},null,null,null,{"$f":"IF($A$3=\"x\",CONCATENATE(I8),\"\")","v":""},null,null,null,null,null,null,null,null,null,null,null,"","","","","","",null,null,null,null,null,null,null,null,null,null,null,null,null,null,null,null,null,null,null,null,null,null,null,null,null,null,null,null,null,null,null,null,null,null,null,"",""]
["9.",null,"3     3",{"$f":"IF($A$3=\"x\",CONCATENATE(B9),\"\")","v":""},null,null,null,{"$f":"IF($A$3=\"x\",CONCATENATE(I9),\"\")","v":""},null,null,null,null,null,null,null,null,null,null,null,"","","","","","",null,null,null,null,null,null,null,null,null,null,null,null,null,null,null,null,null,null,null,null,null,null,null,null,null,null,null,null,null,null,null,null,null,null,null,"",{"$f":"IFERROR(IF(ROW()-ROW($J$1)+1<=COUNTA(INDIRECT($I$6)),INDEX(INDIRECT($I$6),ROW()-ROW($J$1)+1),IF(ROW()-ROW($J$1)+1-COUNTA(INDIRECT($I$6))<=COUNTA($S$10:$S$12),INDEX($S$10:$S$12,ROW()-ROW($J$1)+1-COUNTA(INDIRECT($I$6))),\"\")),\"\")","v":""}]
["10.",null,"4     4",{"$f":"IF($A$3=\"x\",CONCATENATE(B10),\"\")","v":""},null,null,null,{"$f":"IF($A$3=\"x\",CONCATENATE(I10),\"\")","v":""},null,null,null,null,null,null,null,null,null,null,null,"","","","","","",null,null,null,null,null,null,null,null,null,null,null,null,null,null,null,null,null,null,null,null,null,null,null,null,null,null,null,null,null,null,null,null,null,null,null,"",{"$f":"IFERROR(IF(ROW()-ROW($J$1)+1<=COUNTA(INDIRECT($I$6)),INDEX(INDIRECT($I$6),ROW()-ROW($J$1)+1),IF(ROW()-ROW($J$1)+1-COUNTA(INDIRECT($I$6))<=COUNTA($S$10:$S$12),INDEX($S$10:$S$12,ROW()-ROW($J$1)+1-COUNTA(INDIRECT($I$6))),\"\")),\"\")","v":""}]
["11.",null,"3     1",{"$f":"IF($A$3=\"x\",CONCATENATE(B9),\"\")","v":""},null,null,null,{"$f":"IF($A$3=\"x\",CONCATENATE(I7),\"\")","v":""},null,null,null,null,null,null,null,null,null,null,null,"","","","","","",null,null,null,null,null,null,null,null,null,null,null,null,null,null,null,null,null,null,null,null,null,null,null,null,null,null,null,null,null,null,null,null,null,null,null,"",{"$f":"IFERROR(IF(ROW()-ROW($J$1)+1<=COUNTA(INDIRECT($I$6)),INDEX(INDIRECT($I$6),ROW()-ROW($J$1)+1),IF(ROW()-ROW($J$1)+1-COUNTA(INDIRECT($I$6))<=COUNTA($S$10:$S$12),INDEX($S$10:$S$12,ROW()-ROW($J$1)+1-COUNTA(INDIRECT($I$6))),\"\")),\"\")","v":""}]
["12.",null,"1     3",{"$f":"IF($A$3=\"x\",CONCATENATE(B7),\"\")","v":""},null,null,null,{"$f":"IF($A$3=\"x\",CONCATENATE(I9),\"\")","v":""},null,null,null,null,null,null,null,null,null,null,null,"","","","","",""]
["13.",null,"2     4",{"$f":"IF($A$3=\"x\",CONCATENATE(B8),\"\")","v":""},null,null,null,{"$f":"IF($A$3=\"x\",CONCATENATE(I10),\"\")","v":""},null,null,null,null,null,null,null,null,null,null,null,"","","","","",""]
["14.",null,"4     2",{"$f":"IF($A$3=\"x\",CONCATENATE(B10),\"\")","v":""},null,null,null,{"$f":"IF($A$3=\"x\",CONCATENATE(I8),\"\")","v":""},null,null,null,null,null,null,null,null,null,null,null,"","","","","",""]
["15.",null,"1     4",{"$f":"IF($A$3=\"x\",CONCATENATE(B7),\"\")","v":""},null,null,null,{"$f":"IF($A$3=\"x\",CONCATENATE(I10),\"\")","v":""},null,null,null,null,null,null,null,null,null,null,null,"","","","","",""]
["16.",null,"4     1",{"$f":"IF($A$3=\"x\",CONCATENATE(B10),\"\")","v":""},null,null,null,{"$f":"IF($A$3=\"x\",CONCATENATE(I7),\"\")","v":""},null,null,null,null,null,null,null,null,null,null,null,"","","","","",""]
["17.",null,"2     3",{"$f":"IF($A$3=\"x\",CONCATENATE(B8),\"\")","v":""},null,null,null,{"$f":"IF($A$3=\"x\",CONCATENATE(I9),\"\")","v":""},null,null,null,null,null,null,null,null,null,null,null,"","","","","",""]
["18.",null,"3     2",{"$f":"IF($A$3=\"x\",CONCATENATE(B9),\"\")","v":""},null,null,null,{"$f":"IF($A$3=\"x\",CONCATENATE(I8),\"\")","v":""},null,null,null,null,null,null,null,null,null,null,null,"","","","","",""]
["Sieg:","4.Punkt","10.Punkt","Sieger:",null,null,null,{"$f":"IF(I6<>\"\",IF(A3=\"x\",IF(X33=10,B6,IF(Y33=10,I6,\"!Unentschieden!\")),IF(X33=4,B6,IF(Y33=4,H14,\"!Unentschieden!\"))),\"\")","v":""},null,null,"mit",null,{"$f":"IF(X33>Y33,CONCATENATE(X33),Y33)","v":""},null,{"$f":"IF(X33>Y33,CONCATENATE(Y33),X33)","v":""},"Punkten",null,null,null,{"$f":"IF(T15=\"\",\"\",SUM(T15:T32))","v":""},{"$f":"IF(U15=\"\",\"\",SUM(U15:U32))","v":""},null,null,{"$f":"IF(J15=\"\",\"\",IF(MAX(X15:X32)>10,10,MAX(X15:X32)))","v":""},{"$f":"IF(J15=\"\",\"\",IF(MAX(Y15:Y32)>10,\"10\",MAX(Y15:Y32)))","v":""}]
[null,null,null,null,"Unterschriften: ",null,null,"MF Gastgeber",null,null,null,null,"MF Gast"]
["Bemerkungen: "]

{"sheet":"STARTEN","index":8,"n_rows":10,"n_cols":18,"rows_kept":10,"cut":false,"hidden":false,"merged":[[1,1,1,3]]}
[null,null,"Spielzeit 2025/2026 Rückrunde"]
[null,"BITTE WÄHLE ZUM START HIER DEIN SPIEL AUS!"]
[]
[null,"Staffel 1:",null,null,null,null,null,null,null,null,null,null,null,null,null,null,null,"Nicht ändern"]
[]
[null,"Staffel 2:",null,null,null,null,null,null,null,null,null,null,null,null,null,null,null,{"$f":"IFERROR(LEFT(RIGHT(C4,LEN(C4)-SEARCH(\":\",C4)),6),)","v":0}]
[null,null,null,null,null,null,null,null,null,null,null,null,null,null,null,null,null,{"$f":"IFERROR(LEFT(RIGHT(C6,LEN(C6)-SEARCH(\":\",C6)),6),)","v":0}]
[null,"Staffel 3 A:",null,null,null,null,null,null,null,null,null,null,null,null,null,null,null,{"$f":"IFERROR(LEFT(RIGHT(C8,LEN(C8)-SEARCH(\":\",C8)),6),)","v":0}]
[null,null,null,null,null,null,null,null,null,null,null,null,null,null,null,null,null,{"$f":"IFERROR(LEFT(RIGHT(C10,LEN(C10)-SEARCH(\":\",C10)),6),)","v":0}]
[null,"Staffel 3 B:"]

{"sheet":"Anleitung","index":9,"n_rows":12,"n_cols":3,"rows_kept":12,"cut":false,"hidden":false,"merged":[]}
[null,"Anleitung:"]
[null,null,"Beginn: Tabellenblatt STARTEN auswählen! Dort das Spiel wählen!\n1. Im neuen Blatt Mannschaften und Spieler wählen!\n"]
[null,null,"2. Alle Eingaben vornehmen und die Gelben Felder füllen"]
[null,null,"3. Ersatzspieler werden oben Rechts für Heim und Gast eingetragen!"]
[null,null,"4. Am Ende wird mit Bild Speichern und Formular abschliessen das Formular exportiert und kann an den Staffelleiter gesendet werden. Zu finden ist das Bild unter c:/Spielberichte"]
[null,null,"Blendet das aktuelle Spielergebnis des"]
[null,null,"Spiels in Groß ein,damit Zuschauer den"]
[null,null,"aktuellen Stand sehen können"]
[]
[null,null,"Speichert das aktuelle Spielergebnis als JPG"]
[null,null,"Datei unter C:/Spielberichte. Diese kann dann"]
[null,null,"an den Staffelleiter versendet werden."]